{"text_format":"1","workbook":"xlsx","n_sheets":56,"sheets":["Data","Acknowledgement","Guidance","Summary","P1","P2","P3","P4","P5","P6","P7","P8","P9","P10","P11","P12","P13","P14","P15","P16","P17","P18","P19","P20","P21","P22","P23","P24","P25","P26","P27","P28","P29","P30","P31","P32","P33","P34","P35","P36","P37","P38","P39","P40","P41","P42","P43","P44","P45","P46","P47","P48","P49","P50","P51","P52"],"not_rendered":{"charts":0,"images":2,"macros":1,"external_links":0,"defined_names":12,"comments":0,"pivot_tables":0},"unopened":[],"bounds":{"document_bytes":16777216,"sheet_cells":100000,"rows_first":2000,"rows_last":500,"rows_between":2000,"halvings":0,"cell_chars":16384,"cell_head_chars":4096},"cells_cut":0,"cells_raw":0,"read":"whole","date_system":"1900"}

{"sheet":"Data","index":0,"n_rows":13,"n_cols":8,"rows_kept":13,"cut":false,"hidden":true,"merged":[]}
["High",null,"FX",null,"Applicable","Adherent","In progress","Audit"]
["Moderate",null,"MX",null,"Applicable","In process","Completed","Business Area"]
["Low",null,"BX",null,"Not Applicable","Not Applicable","On hold","Credit Risk"]
[null,null,"Compliance",null,null,null,"Not started","Customer Service Department"]
[null,null,"Audit",null,null,null,null,"IT"]
[null,null,null,null,null,null,null,"Legal"]
[null,null,null,null,null,null,null,"Market Risk"]
[null,null,null,null,null,null,null,"Markets"]
[null,null,null,null,null,null,null,"Operational Risk"]
[null,null,null,null,null,null,null,"Operations Department"]
[null,null,null,null,null,null,null,"Retail and Corporate Banking"]
[null,null,null,null,null,null,null,"Strategy Department"]
[null,null,null,null,null,null,null,"Treasury"]

{"sheet":"Acknowledgement","index":1,"n_rows":0,"n_cols":0,"rows_kept":0,"cut":false,"hidden":false,"merged":[]}

{"sheet":"Guidance","index":2,"n_rows":0,"n_cols":0,"rows_kept":0,"cut":false,"hidden":false,"merged":[]}

{"sheet":"Summary","index":3,"n_rows":62,"n_cols":8,"rows_kept":62,"cut":false,"hidden":false,"merged":[[60,4,60,5],[1,7,1,8],[1,1,2,1],[1,3,2,3],[1,4,2,4],[1,5,2,5],[1,2,2,2]]}
[]
[null,"Principle","Applicability","Responsible Business Area","Overall Status","Progress (0-100%)",null,"Allocation"]
[]
[null,null,{"$f":"IF(C5=\"\",\"Select Applicability here\",\"\")","v":""}]
[null,"Principle 1","Applicable",{"$f":"'P1'!C$5","v":"Business Area"},"Select Status","Insert Progress (in %)"]
[null,"Principle 2","Applicable",{"$f":"'P2'!C$5","v":"Business Area"},"Select Status","Insert Progress (in %)"]
[null,"Principle 3","Applicable",{"$f":"'P3'!C$5","v":"Business Area"},"Select Status","Insert Progress (in %)"]
[null,"Principle 4","Applicable",{"$f":"'P4'!C$5","v":"Business Area"},"Select Status","Insert Progress (in %)"]
[null,"Principle 5","Applicable",{"$f":"'P5'!C$5","v":"Business Area"},"Select Status","Insert Progress (in %)"]
[null,"Principle 6","Applicable",{"$f":"'P6'!C$5","v":"Business Area"},"Select Status","Insert Progress (in %)"]
[null,"Principle 7","Applicable",{"$f":"'P7'!C$5","v":"Business Area"},"Select Status","Insert Progress (in %)"]
[null,"Principle 8","Applicable",{"$f":"'P8'!C$5","v":"Business Area"},"Select Status","Insert Progress (in %)"]
[null,"Principle 9","Applicable",{"$f":"'P9'!C$5","v":"Business Area"},"Select Status","Insert Progress (in %)"]
[null,"Principle 10","Applicable",{"$f":"'P10'!C$5","v":"Business Area"},"Select Status","Insert Progress (in %)"]
[null,"Principle 11","Applicable",{"$f":"'P11'!C$5","v":"Business Area"},"Select Status","Insert Progress (in %)"]
[null,"Principle 12","Applicable",{"$f":"'P12'!C$5","v":"Business Area"},"Select Status","Insert Progress (in %)"]
[null,"Principle 13","Applicable",{"$f":"'P13'!C$5","v":"Business Area"},"Select Status","Insert Progress (in %)"]
[null,"Principle 14","Applicable",{"$f":"'P14'!C$5","v":"Business Area"},"Select Status","Insert Progress (in %)"]
[null,"Principle 15","Applicable",{"$f":"'P15'!C$5","v":"Business Area"},"Select Status","Insert Progress (in %)"]
[null,"Principle 16","Applicable",{"$f":"'P16'!C$5","v":"Business Area"},"Select Status","Insert Progress (in %)"]
[null,"Principle 17","Applicable",{"$f":"'P17'!C$5","v":"Business Area"},"Select Status","Insert Progress (in %)"]
[null,"Principle 18","Applicable",{"$f":"'P18'!C$5","v":"Business Area"},"Select Status","Insert Progress (in %)"]
[null,"Principle 19","Applicable",{"$f":"'P19'!C$5","v":"Business Area"},"Select Status","Insert Progress (in %)"]
[null,"Principle 20","Applicable",{"$f":"'P20'!C$5","v":"Business Area"},"Select Status","Insert Progress (in %)"]
[null,"Principle 21","Applicable",{"$f":"'P21'!C$5","v":"Business Area"},"Select Status","Insert Progress (in %)"]
[null,"Principle 22","Applicable",{"$f":"'P22'!C$5","v":"Business Area"},"Select Status","Insert Progress (in %)"]
[null,"Principle 23","Applicable",{"$f":"'P23'!C$5","v":"Business Area"},"Select Status","Insert Progress (in %)"]
[null,"Principle 24","Applicable",{"$f":"'P24'!C$5","v":"Business Area"},"Select Status","Insert Progress (in %)"]
[null,"Principle 25","Applicable",{"$f":"'P25'!C$5","v":"Business Area"},"Select Status","Insert Progress (in %)"]
[null,"Principle 26","Applicable",{"$f":"'P26'!C$5","v":"Business Area"},"Select Status","Insert Progress (in %)"]
[null,"Principle 27","Applicable",{"$f":"'P27'!C$5","v":"Business Area"},"Select Status","Insert Progress (in %)"]
[null,"Principle 28","Applicable",{"$f":"'P28'!C$5","v":"Business Area"},"Select Status","Insert Progress (in %)"]
[null,"Principle 29","Applicable",{"$f":"'P29'!C$5","v":"Business Area"},"Select Status","Insert Progress (in %)"]
[null,"Principle 30","Applicable",{"$f":"'P30'!C$5","v":"Business Area"},"Select Status","Insert Progress (in %)"]
[null,"Principle 31","Applicable",{"$f":"'P31'!C$5","v":"Business Area"},"Select Status","Insert Progress (in %)"]
[null,"Principle 32","Applicable",{"$f":"'P32'!C$5","v":"Business Area"},"Select Status","Insert Progress (in %)"]
[null,"Principle 33","Applicable",{"$f":"'P33'!C$5","v":"Business Area"},"Select Status","Insert Progress (in %)"]
[null,"Principle 34","Applicable",{"$f":"'P34'!C$5","v":"Business Area"},"Select Status","Insert Progress (in %)"]
[null,"Principle 35","Applicable",{"$f":"'P35'!C$5","v":"Business Area"},"Select Status","Insert Progress (in %)"]
[null,"Principle 36","Applicable",{"$f":"'P36'!C$5","v":"Business Area"},"Select Status","Insert Progress (in %)"]
[null,"Principle 37","Applicable",{"$f":"'P37'!C$5","v":"Business Area"},"Select Status","Insert Progress (in %)"]
[null,"Principle 38","Applicable",{"$f":"'P38'!C$5","v":"Business Area"},"Select Status","Insert Progress (in %)"]
[null,"Principle 39","Applicable",{"$f":"'P39'!C$5","v":"Business Area"},"Select Status","Insert Progress (in %)"]
[null,"Principle 40","Applicable",{"$f":"'P40'!C$5","v":"Business Area"},"Select Status","Insert Progress (in %)"]
[null,"Principle 41","Applicable",{"$f":"'P41'!C$5","v":"Business Area"},"Select Status","Insert Progress (in %)"]
[null,"Principle 42","Applicable",{"$f":"'P42'!C$5","v":"Business Area"},"Select Status","Insert Progress (in %)"]
[null,"Principle 43","Applicable",{"$f":"'P43'!C$5","v":"Business Area"},"Select Status","Insert Progress (in %)"]
[null,"Principle 44","Applicable",{"$f":"'P44'!C$5","v":"Business Area"},"Select Status","Insert Progress (in %)"]
[null,"Principle 45","Applicable",{"$f":"'P45'!C$5","v":"Business Area"},"Select Status","Insert Progress (in %)"]
[null,"Principle 46","Applicable",{"$f":"'P46'!C$5","v":"Business Area"},"Select Status","Insert Progress (in %)"]
[null,"Principle 47","Applicable",{"$f":"'P47'!C$5","v":"Business Area"},"Select Status","Insert Progress (in %)"]
[null,"Principle 48","Applicable",{"$f":"'P48'!C$5","v":"Business Area"},"Select Status","Insert Progress (in %)"]
[null,"Principle 49","Applicable",{"$f":"'P49'!C$5","v":"Business Area"},"Select Status","Insert Progress (in %)"]
[null,"Principle 50","Applicable",{"$f":"'P50'!C$5","v":"Business Area"},"Select Status","Insert Progress (in %)"]
[null,"Principle 51","Applicable",{"$f":"'P51'!C$5","v":"Business Area"},"Select Status","Insert Progress (in %)"]
[null,"Principle 52","Applicable",{"$f":"'P52'!C$5","v":"Business Area"},"Select Status","Insert Progress (in %)"]
[null,"Principle 53","Applicable"]
[null,"Principle 54","Applicable"]
[null,"Principle 55","Applicable"]
[]
[null,null,null,null,"Summary Percentage Aherence"]
[null,null,null,null,"Sum Average",{"$f":"AVERAGE(F5:F56)","v":{"$error":"#DIV/0!"}}]

{"sheet":"P1","index":4,"n_rows":15,"n_cols":8,"rows_kept":15,"cut":false,"hidden":false,"merged":[[6,5,6,7],[6,1,7,2],[9,1,11,1],[12,1,14,1],[6,3,6,4]]}
["Summary"]
[null,"Leading Principle:","Ethics"]
[null,"Principle 1","Market Participants should strive for the highest ethical standards."]
[null,"Applicability:","Applicable"]
[null,"Lead business area:","Business Area"]
[]
[null,"KENYA FOREIGN EXCHANGE CODE PRINCIPLE",null,"APPLICABILITY",null,"ADHERENCE"]
[null,null,null,"STATUS","RATIONALE","STATUS","OUR PRACTICE","COMMENTS"]
[null,null,null,"Check whether this principle is applicable to the institution's FX activities","Provide reasoning on the principle's applicability to the institution's FX activities","Check whether the instititution is adhering to this principle","Outline the institution's practices","Provide any further comments"]
[null,"Market Participants should strive for the highest ethical standards","act honestly in dealings with Clients and other Market Participants","Applicable",null,"In process"]
[null,null,"act fairly, dealing with Clients and other Market Participants in a consistent and appropriately transparent manner","Applicable",null,"In process"]
[null,null,"act with integrity, particularly in avoiding and confronting questionable practices and behaviours","Applicable",null,"In process"]
[null,"Maintaining high standards of behaviour is the responsibility of","firms, which should promote ethical values and behaviour within the organisation,\nsupport efforts to promote high ethical standards in the wider Kenya FX Market, and incorporate\ninvolvement by personnel in such efforts","Applicable",null,"In process"]
[null,null,"senior and front-line management, which should be pro-active in embedding and supporting the practice of ethical values within the firm’s culture and be prepared to give appropriate advice to personnel","Applicable",null,"In process"]
[null,null,"personnel, who should apply judgement when facing ethical questions, expect to be held responsible for unethical behaviour, and seek advice where appropriate. Personnel should report and/or escalate issues of concern to appropriate parties internally or externally, having regard to the circumstances","Applicable",null,"In process"]

{"sheet":"P2","index":5,"n_rows":16,"n_cols":8,"rows_kept":16,"cut":false,"hidden":false,"merged":[[6,1,7,2],[6,3,6,4],[6,5,6,7],[9,1,13,1],[14,1,15,1]]}
["Summary"]
[null,"Leading Principle:","Ethics"]
[null,"Principle 2","Market Participants should strive for the highest professional standards."]
[null,"Applicability:","Applicable"]
[null,"Lead business area:","Business Area"]
[]
[null,"KENYA FOREIGN EXCHANGE CODE PRINCIPLE",null,"APPLICABILITY",null,"ADHERENCE"]
[null,null,null,"STATUS","RATIONALE","STATUS","OUR PRACTICE","COMMENTS"]
[null,null,null,"Check whether this principle is applicable to the institution's FX activities","Provide reasoning on the principle's applicability to the institution's FX activities","Check whether the instititution is adhering to this principle","Outline the institution's practices","Provide any further comments"]
[null,"Market Participants should strive for the highest professional standards underpinned by:","having sufficient knowledge of, and complying with, Applicable Law","Applicable",null,"In process"]
[null,null,"having sufficient relevant experience, technical knowledge, and qualifications","Applicable",null,"In process"]
[null,null,"acting with competence and skill","Applicable",null,"In process"]
[null,null,"applying  professional  judgement  in  following  the  firm’s  guidelines  and  operating procedures, including, but not limited to, methods of execution, record keeping, and ethical behaviour","Applicable",null,"In process"]
[null,null,"engaging in efforts to strive for the highest standards of professionalism in the wider FX Market.","Applicable",null,"In process"]
[null,"Firms should have personnel who ","are appropriately trained ","Applicable",null,"In process"]
[null,null,"have the necessary experience to discharge their employment duties in a professional manner","Applicable",null,"In process"]

{"sheet":"P3","index":6,"n_rows":24,"n_cols":8,"rows_kept":24,"cut":false,"hidden":false,"merged":[[33,1,34,2],[6,1,7,2],[6,3,6,4],[6,5,6,7],[8,1,8,2],[23,1,23,2],[11,1,12,1],[9,1,10,1],[13,1,16,1],[17,1,22,1]]}
["Summary"]
[null,"Leading Principle:","Ethics"]
[null,"Principle 3","Market Participants should identify and address conflicts of interest."]
[null,"Applicability:","Applicable"]
[null,"Lead business area:","Business Area"]
[]
[null,"KENYA FOREIGN EXCHANGE CODE PRINCIPLE",null,"APPLICABILITY",null,"ADHERENCE"]
[null,null,null,"STATUS","RATIONALE","STATUS","OUR PRACTICE","COMMENTS"]
[null,null,null,"Check whether this principle is applicable to the institution's FX activities","Provide reasoning on the principle's applicability to the institution's FX activities","Check whether the instititution is adhering to this principle","Outline the institution's practices","Provide any further comments"]
[null,"Market Participants should identify and address conflicts of interest ","identify actual and potential conflicts of interest that may compromise  or  be  perceived  to  compromise  their  ethical  or  professional  judgement. ","Applicable",null,"In process"]
[null,null,"eliminate these conflicts or, if this is not reasonably possible, effectively manage them so as to promote fair treatment of their Clients and other Market Participants, up to and including abstaining from undertaking the relevant activity or action due to the conflict of interests","Applicable",null,"In process"]
[null,"Personnel should","be aware of the potential for conflicts of interest to arise","Applicable",null,"In process"]
[null,null,"comply with their firm’s policies in these areas.","Applicable",null,"In process"]
[null,"Contexts in which conflicts may arise include, but are not limited to:","situations where personal or firm interests may conflict with those of a Client or other Market Participant, or where such a conflict arises for the Market Participant because the interests of one Client may conflict with those of another","Applicable",null,"In process"]
[null,null,"personal relationships","Applicable",null,"In process"]
[null,null,"gifts and corporate entertainment","Applicable",null,"In process"]
[null,null,"Personal Dealing.","Applicable",null,"In process"]
[null,"Market Participants should put in place appropriate and effective arrangements to eliminate or manage conflicts of interest. This could include:","segregation of duties and/or reporting lines;","Applicable",null,"In process"]
[null,null,"establishing information barriers (for example, physical segregation of certain departments and/or electronic segregation)","Applicable",null,"In process"]
[null,null,"altering the duties of personnel when such duties are likely to give rise to conflicts of interest","Applicable",null,"In process"]
[null,null,"providing training to relevant personnel to enable them to identify and handle conflicts of interest;","Applicable",null,"In process"]
[null,null,"establishing declaration policies and/or records for identified conflicts of interest and personal relationships, as well as for gifts and corporate entertainment received","Applicable",null,"In process"]
[null,null,"having policies and controls on Personal Dealing.","Applicable",null,"In process"]
[null,"Where it is concluded that a specific conflict of interest cannot reasonably be avoided or effectively managed (including by ceasing to undertake the relevant service or activity), Market Participants should disclose sufficient details of the conflict to enable the affected parties to decide beforehand whether or not they wish to proceed with the transaction or service.",null,"Applicable",null,"In process"]

{"sheet":"P4","index":7,"n_rows":14,"n_cols":8,"rows_kept":14,"cut":false,"hidden":false,"merged":[[6,1,7,2],[6,3,6,4],[6,5,6,7],[8,1,8,2],[13,1,13,2],[9,1,12,1]]}
["Summary"]
[null,"Leading Principle:","Governance"]
[null,"Principle 4","The Board that is ultimately responsible for the Market Participant’s FX business strategy and financial soundness should put in place adequate and effective structures and mechanisms to provide for appropriate oversight, supervision, and controls with regard to the Market Participant’s FX Market activity."]
[null,"Applicability:","Applicable"]
[null,"Lead business area:","Business Area"]
[]
[null,"KENYA FOREIGN EXCHANGE CODE PRINCIPLE",null,"APPLICABILITY",null,"ADHERENCE"]
[null,null,null,"STATUS","RATIONALE","STATUS","OUR PRACTICE","COMMENTS"]
[null,null,null,"Check whether this principle is applicable to the institution's FX activities","Provide reasoning on the principle's applicability to the institution's FX activities","Check whether the instititution is adhering to this principle","Outline the institution's practices","Provide any further comments"]
[null,"The Board that is ultimately responsible for the Market Participant’s FX business strategy and financial soundness should put in place:","an operational structure with clearly defined and transparent lines of responsibility for the Market Participant’s FX Market activity","Applicable",null,"In process"]
[null,null,"effective oversight of the Market Participant’s FX Market activity based on appropriate management information","Applicable",null,"In process"]
[null,null,"an environment that ensures effective interaction with senior management charged with day\u0002to-day responsibility for the Market Participant’s FX Market activity","Applicable",null,"In process"]
[null,null,"independent control functions and mechanisms to assess whether the Market Participant’s FX business is conducted in a manner that reflects the operational risk and conduct requirements. Such functions should have sufficient stature, resources, and access to the Board that is ultimately responsible for the Market Participant’s FX business strategy and financial soundness.","Applicable",null,"In process"]
[null,"In implementing the above, consideration should be given to the types of activities that the Market Participant engages in, including if the Market Participant engages in the provision or usage of Electronic Trading Activities.",null,"Applicable",null,"In process"]

{"sheet":"P5","index":8,"n_rows":13,"n_cols":8,"rows_kept":13,"cut":false,"hidden":false,"merged":[[11,1,12,1],[6,1,7,2],[6,3,6,4],[6,5,6,7],[8,1,8,2],[9,1,10,1]]}
["Summary"]
[null,"Leading Principle:","Governance"]
[null,"Principle 5","Market Participants should embed a strong culture of ethical and professional conduct with regard to their FX business."]
[null,"Applicability:","Applicable"]
[null,"Lead business area:","Business Area"]
[]
[null,"KENYA FOREIGN EXCHANGE CODE PRINCIPLE",null,"APPLICABILITY",null,"ADHERENCE"]
[null,null,null,"STATUS","RATIONALE","STATUS","OUR PRACTICE","COMMENTS"]
[null,null,null,"Check whether this principle is applicable to the institution's FX activities","Provide reasoning on the principle's applicability to the institution's FX activities","Check whether the instititution is adhering to this principle","Outline the institution's practices","Provide any further comments"]
[null,"Market Participants should, among other things:","expect senior management to be highly visible to relevant personnel of the Market Participant in articulating and modelling the desired practices, values, and conduct.","Applicable",null,"In process"]
[null,null,"make all relevant personnel (including senior management) aware that disciplinary or other actions may result from unacceptable behaviours and transgressions of the Market Participant’s policies.","Applicable",null,"In process"]
[null,"Market Participants should take appropriate steps to promote and reinforce all relevant personnel’s awareness and understanding of:","the values and the ethical and conduct standards that should be adhered to in their engagement in the Kenya FX Market","Applicable",null,"In process"]
[null,null,"Applicable Law that is relevant to them (see Principle 23)","Applicable",null,"In process"]

{"sheet":"P6","index":9,"n_rows":13,"n_cols":8,"rows_kept":13,"cut":false,"hidden":false,"merged":[[6,1,7,2],[6,3,6,4],[6,5,6,7],[8,1,8,2],[9,1,12,1]]}
["Summary"]
[null,"Leading Principle:","Governance"]
[null,"Principle 6","Market Participants should have remuneration and promotion structures that promote market practices and behaviours that are consistent with the Market Participant’s ethical and professional conduct expectations."]
[null,"Applicability:","Applicable"]
[null,"Lead business area:","Business Area"]
[]
[null,"KENYA FOREIGN EXCHANGE CODE PRINCIPLE",null,"APPLICABILITY",null,"ADHERENCE"]
[null,null,null,"STATUS","RATIONALE","STATUS","OUR PRACTICE","COMMENTS"]
[null,null,null,"Check whether this principle is applicable to the institution's FX activities","Provide reasoning on the principle's applicability to the institution's FX activities","Check whether the instititution is adhering to this principle","Outline the institution's practices","Provide any further comments"]
[null,"Market Participant’s remuneration and promotion structures should ensure practices and behaviours that are consistent with the firm’s ethical and professional conduct expectations; they should not incentivise personnel to engage in inappropriate behaviours or practices, or to take risks beyond the overall business risk parameters of the Market Participant. Factors that should be taken into account include but are not limited to:","the mix of pay components, such as fixed and variable","Applicable",null,"In process"]
[null,null,"the form and timing of payment for the variable pay component","Applicable",null,"In process"]
[null,null,"how such structures align the interest of relevant personnel with the interests of the firm over both short- and long-term horizons;","Applicable",null,"In process"]
[null,null,"appropriate mechanisms to discourage inappropriate practices or behaviours","Applicable",null,"In process"]

{"sheet":"P7","index":10,"n_rows":13,"n_cols":8,"rows_kept":13,"cut":false,"hidden":false,"merged":[[6,5,6,7],[8,1,8,2],[12,1,12,2],[9,1,10,1],[11,1,11,2],[6,1,7,2],[6,3,6,4]]}
["Summary"]
[null,"Leading Principle:","Governance"]
[null,"Principle 7","Market Participants should have appropriate policies and procedures to handle and respond to potentially improper practices and behaviours effectively."]
[null,"Applicability:","Applicable"]
[null,"Lead business area:","Business Area"]
[]
[null,"KENYA FOREIGN EXCHANGE CODE PRINCIPLE",null,"APPLICABILITY",null,"ADHERENCE"]
[null,null,null,"STATUS","RATIONALE","STATUS","OUR PRACTICE","COMMENTS"]
[null,null,null,"Check whether this principle is applicable to the institution's FX activities","Provide reasoning on the principle's applicability to the institution's FX activities","Check whether the instititution is adhering to this principle","Outline the institution's practices","Provide any further comments"]
[null,"Market Participants should maintain policies and procedures, supported by effective mechanisms, to","provide confidential channels for personnel or external parties to raise concerns about potentially improper practices and behaviours","Applicable",null,"In process"]
[null,null,"investigate and respond to such reports as appropriate","Applicable",null,"In process"]
[null,"Firms should be clear with relevant personnel and external parties about where and how to report concerns about potentially improper practices and behaviours (including but not limited to cases of illegal, unethical, or questionable practices and behaviours) confidentially and without fear of reprisal or retribution.",null,"Applicable",null,"In process"]
[null,"Market Participants should complete the investigation and determine the appropriate outcome within a reasonable time frame, taking into account the nature and complexity of the matter in question. Escalation within the firm and reporting outside the firm may be appropriate before an investigation is concluded. The reports and results should be brought to the attention of the Board and Senior Management within the Market Participant, and if appropriate, to the Bank",null,"Applicable",null,"In process"]

{"sheet":"P8","index":11,"n_rows":11,"n_cols":8,"rows_kept":11,"cut":false,"hidden":false,"merged":[[9,1,10,1],[6,1,7,2],[6,3,6,4],[6,5,6,7]]}
["Summary"]
[null,"Leading Principle:","Execution"]
[null,"Principle 8","Market Participants should be clear about the capacities in which they act."]
[null,"Applicability:","Applicable"]
[null,"Lead business area:","Business Area"]
[]
[null,"KENYA FOREIGN EXCHANGE CODE PRINCIPLE",null,"APPLICABILITY",null,"ADHERENCE"]
[null,null,null,"STATUS","RATIONALE","STATUS","OUR PRACTICE","COMMENTS"]
[null,null,null,"Check whether this principle is applicable to the institution's FX activities","Provide reasoning on the principle's applicability to the institution's FX activities","Check whether the instititution is adhering to this principle","Outline the institution's practices","Provide any further comments"]
[null,"Market Participants should understand and clearly communicate their roles and capacities in managing orders or executing transactions. Market Participants may have a standing agreement or other terms of business as to their roles that govern all trades, or they may manage their relationship by determining their roles on a trade-by-trade basis. If a Market Participant wishes to vary the capacity in which it or its counterpart acts, any such alternative arrangement should be agreed by both parties. A Market Participant receiving a Client order may:","act as an Agent, executing orders on behalf of the Client pursuant to the Client mandate, and without taking on market risk in connection with the order.","Applicable",null,"In process"]
[null,null,"act as a Principal taking on one or more risks in connection with an order, including credit risk and varying degrees of market risk. Principals act on their own behalf and there is no obligation to execute the order until both parties are in agreement. Where the acceptance of an order grants the Principal executing the order some discretion, it should exercise this discretion reasonably, fairly, and in such a way that is not designed or intended to disadvantage the Client.","Applicable",null,"In process"]

{"sheet":"P9","index":12,"n_rows":48,"n_cols":9,"rows_kept":48,"cut":false,"hidden":false,"merged":[[47,2,47,3],[46,2,46,3],[45,2,45,3],[45,1,47,1],[34,2,34,3],[35,2,35,3],[29,1,35,1],[40,2,40,3],[38,2,38,3],[37,2,37,3],[36,2,36,3],[36,1,40,1],[39,2,39,3],[41,1,44,1],[41,2,41,3],[42,2,42,3],[43,2,43,3],[44,2,44,3],[6,6,6,8],[6,1,7,3],[31,2,33,2],[17,1,22,1],[23,2,25,2],[23,1,28,1],[17,2,17,3],[18,2,18,3],[19,2,19,3],[20,2,20,3],[28,2,28,3],[27,2,27,3],[10,1,16,1],[9,1,9,3],[10,2,10,3],[6,4,6,5],[26,2,26,3],[21,2,21,3],[11,2,11,3],[12,2,12,3],[13,2,13,3],[14,2,14,3],[15,2,15,3],[16,2,16,3],[22,2,22,3]]}
["Summary"]
[null,"Leading Principle:","Execution"]
[null,"Principle 9","Market Participants should handle orders fairly and with transparency in line with the capacities in which they act."]
[null,"Applicability:","Applicable"]
[null,"Lead business area:","Business Area"]
[]
[null,"KENYA FOREIGN EXCHANGE CODE PRINCIPLE",null,null,"APPLICABILITY",null,"ADHERENCE"]
[null,null,null,null,"STATUS","RATIONALE","STATUS","OUR PRACTICE","COMMENTS"]
[null,null,null,null,"Check whether this principle is applicable to the institution's FX activities","Provide reasoning on the principle's applicability to the institution's FX activities","Check whether the instititution is adhering to this principle","Outline the institution's practices","Provide any further comments"]
[null,"Market Participants are expected to handle orders with fairness and transparency. How this is done, and what the relevant good practices are, vary depending upon the role in which those Market Participants are acting, as described in Principle 8 above. While the FX Market has traditionally operated as a Principal-based market, Agency-based execution also takes place. Accordingly, this principle takes into account both Principal and Agency models as well as FX E-Trading Platforms.",null,null,"Applicable",null,"In process"]
[null,"Irrespective of their role, Market Participants handling orders should:","have clear standards in place that strive for a fair and transparent outcome for the Client",null,"Applicable",null,"In process"]
[null,null,"be truthful in their statements",null,"Applicable",null,"In process"]
[null,null,"use clear and unambiguous language",null,"Applicable",null,"In process"]
[null,null,"make clear whether the prices they are providing are firm or merely indicative",null,"Applicable",null,"In process"]
[null,null,"have adequate processes in place to support the rejection of Client orders for products they believe to be inappropriate for the Client",null,"Applicable",null,"In process"]
[null,null,"not enter into transactions with the intention of disrupting the market (see Principle 12 in Execution for further guidance)",null,"Applicable",null,"In process"]
[null,null,"provide all relevant disclosures and information to a Client before negotiating a Client order, thereby allowing the Client to make an informed decision as to whether to transact or not.",null,"Applicable",null,"In process"]
[null,"Market Participants should make Clients aware of such factors as:","how orders are handled and transacted, including whether orders are aggregated or time prioritised",null,"Applicable",null,"In process"]
[null,null,"the potential for orders to be executed either electronically or manually, depending on the disclosed transaction terms",null,"Applicable",null,"In process"]
[null,null,"the various factors that may affect the execution policy, which would typically include positioning, whether the Market Participant managing Client orders is itself taking on the associated risk or not, prevailing liquidity and market conditions, other Client orders, and/or a trading strategy that may affect the execution policy;",null,"Applicable",null,"In process"]
[null,null,"where discretion may exist or may be expected, and how it may be exercised",null,"Applicable",null,"In process"]
[null,null,"the basis on which trade requests and/or orders might be rejected; and",null,"Applicable",null,"In process"]
[null,null,"whenever possible, what the time-stamping policy is and whether it is applied both when the order is accepted and when it is triggered or executed (see Principle 34 in Risk Management and Compliance for further guidance).",null,"Applicable",null,"In process"]
[null,"Market Participants handling Client orders in a Principal role should","disclose the terms and conditions under which the Principal will interact with the Client, which might include","that the Principal acts on its own behalf as a counterparty to the Client;","Applicable",null,"In process"]
[null,null,null,"how the Principal will communicate and transact in relation to requests for quotes, requests for indicative prices, discussion or placement of orders, and all other expressions of interest that may lead to the execution of transactions","Applicable",null,"In process"]
[null,null,null,"how potential or actual conflicts of interest in Principal-dealing and market-making activity may be identified and addressed","Applicable",null,"In process"]
[null,null,"establish clarity regarding the point at which market risk may transfer;",null,"Applicable",null,"In process"]
[null,null,"have market-making and risk management activity, such as hedging, commensurate with their trading strategy, positioning, risk assumed, and prevailing liquidity and market conditions",null,"Applicable",null,"In process"]
[null,null,"have internal Mark Up policies consistent with applicable guidelines (see Principle 14 for further guidance).",null,"Applicable",null,"In process"]
[null,"Market Participants handling Client orders in an Agent role should:","communicate with the Client regarding the nature of their relationship",null,"Applicable",null,"In process"]
[null,null,"seek to obtain the result requested by the Client",null,"Applicable",null,"In process"]
[null,null,"establish a transparent order execution policy that should supply information relevant to the Client order that may include","information on where the firm may execute the Client orders","Applicable",null,"In process"]
[null,null,null,"the factors affecting the choice of execution venues;","Applicable",null,"In process"]
[null,null,null,"information as to how the Agent intends to provide for the prompt, fair, and expeditious execution of the Client order","Applicable",null,"In process"]
[null,null,"be transparent with the Client about their terms and conditions, which clearly set out fees and commissions applicable throughout the time of the agreement",null,"Applicable",null,"In process"]
[null,null,"share information relating to orders accepted on an Agency basis with any market-making or Principal trading desks only as required to request a competitive quote. (See Principle 17 in Information Sharing for further guidance.)",null,"Applicable",null,"In process"]
[null,"Market Participants operating FX E-Trading Platforms should:","have rules that are transparent to users",null,"Applicable",null,"In process"]
[null,null,"make clear any restrictions or other requirements that may apply to the use of the electronic quotations",null,"Applicable",null,"In process"]
[null,null,"establish clarity regarding the point at which market risk may transfer",null,"Applicable",null,"In process"]
[null,null,"have appropriate disclosure about subscription services being offered and any associated benefits, including market data (so that Clients have the opportunity to select among all services they are eligible for);",null,"Applicable",null,"In process"]
[null,null,"explicitly state - when hosting multiple liquidity providers - market data policies within applicable disclosure documents (including rulebooks, guidelines, etc), including at a minimum: what level of detail is available, which user types they are available to, and with what frequency and latency this market data is available. ",null,"Applicable",null,"In process"]
[null,"Market Participants operating anonymous FX E-Trading platforms that feature unique identifiers (“tags”) should, where applicable: ","have appropriate disclosure to all users of what specific counterparty information is provided for tags, and to whom this information is provided; ",null,"Applicable",null,"In process"]
[null,null,"have appropriate disclosure to all users indicating at what point in a transaction a user tag is provided to their counterparty; ",null,"Applicable",null,"In process"]
[null,null,"have disclosure documents (including rulebooks, guidelines, etc) that contain clear policies related to how tags are assigned and managed, including policies related to re-tagging; ",null,"Applicable",null,"In process"]
[null,null,"maintain audit trails for all tag assignments and re-tags. ",null,"Applicable",null,"In process"]
[null,"Market Participants acting as Clients should","be aware of the responsibilities they should expect of others as highlighted above",null,"Applicable",null,"In process"]
[null,null,"be aware of the risks associated with the transactions they request and undertake",null,"Applicable",null,"In process"]
[null,null,"regularly evaluate the execution they receive.",null,"Applicable",null,"In process"]

{"sheet":"P10","index":13,"n_rows":18,"n_cols":9,"rows_kept":18,"cut":false,"hidden":false,"merged":[[15,2,15,3],[16,2,16,3],[14,1,16,1],[17,1,17,3],[12,2,12,3],[13,2,13,3],[14,2,14,3],[6,6,6,8],[6,4,6,5],[6,1,7,3],[11,2,11,3],[10,2,10,3],[10,1,13,1],[9,1,9,3]]}
["Summary"]
[null,"Leading Principle:","Execution"]
[null,"Principle 10","Market Participants should handle orders fairly, with transparency, and in a manner consistent with the specific considerations relevant to different order types. "]
[null,"Applicability:","Applicable"]
[null,"Lead business area:","Business Area"]
[]
[null,"KENYA FOREIGN EXCHANGE CODE PRINCIPLE",null,null,"APPLICABILITY",null,"ADHERENCE"]
[null,null,null,null,"STATUS","RATIONALE","STATUS","OUR PRACTICE","COMMENTS"]
[null,null,null,null,"Check whether this principle is applicable to the institution's FX activities","Provide reasoning on the principle's applicability to the institution's FX activities","Check whether the instititution is adhering to this principle","Outline the institution's practices","Provide any further comments"]
[null,null,null,null,"Applicable",null,"In process"]
[null,"Market Participants handling a Client’s Stop Loss Order should:","obtain from the Client the information required to fully define the terms of a Stop Loss Order, such as the reference price, order amount, time period, and trigger",null,"Applicable",null,"In process"]
[null,null,"disclose to Clients whether risk management transactions may be executed close to a Stop Loss Order trigger level, and that those transactions may impact the reference price and result in the Stop Loss Order being triggered.",null,"Applicable",null,"In process"]
[null,null,"not trade or otherwise act in a manner designed to move the market to the Stop Loss level",null,"Applicable",null,"In process"]
[null,null,"not offer Stop Loss Orders on a purposefully loss-making basis",null,"Applicable",null,"In process"]
[null,"Market Participants filling a Client order, which may involve a partial fill, should:","be fair and reasonable based upon prevailing market circumstances, and any other applicable factors disclosed to the Client, in determining if and how a Client order is filled, paying attention to any other relevant policies",null,"Applicable",null,"In process"]
[null,null,"make a decision on whether, and how, to fill a Client order, including partial fills, and communicate that decision to the Client as soon as practicable",null,"Applicable",null,"In process"]
[null,null,"fully fill Client orders they are capable of filling within the parameters specified by the Client, subject to factors such as the need to prioritise among Client orders and the availability of the Market Participant’s credit line for the Client at the time",null,"Applicable",null,"In process"]
[null,"Market Participants handling orders that have the potential to have sizable market impact should do so with particular care and attention. For example, there are certain transactions that may be required in the course of business, such as those related to merger and acquisition activity, which could have a sizable impact on the market.",null,null,"Applicable",null,"In process"]

{"sheet":"P11","index":14,"n_rows":15,"n_cols":8,"rows_kept":15,"cut":false,"hidden":false,"merged":[[6,1,7,2],[6,3,6,4],[6,5,6,7],[8,1,8,2],[9,1,14,1]]}
["Summary"]
[null,"Leading Principle:","Execution"]
[null,"Principle 11","A Market Participant should only Pre-Hedge Client orders when acting as a Principal, and should do so fairly and with transparency."]
[null,"Applicability:","Applicable"]
[null,"Lead business area:","Business Area"]
[]
[null,"KENYA FOREIGN EXCHANGE CODE PRINCIPLE",null,"APPLICABILITY",null,"ADHERENCE"]
[null,null,null,"STATUS","RATIONALE","STATUS","OUR PRACTICE","COMMENTS"]
[null,null,null,"Check whether this principle is applicable to the institution's FX activities","Provide reasoning on the principle's applicability to the institution's FX activities","Check whether the instititution is adhering to this principle","Outline the institution's practices","Provide any further comments"]
[null,"A Market Participant should only Pre-Hedge Client orders when acting as a Principal, and should do so fairly and with transparency.\n\nPre-Hedging is the management of the risk associated with one or more anticipated Client orders, designed to benefit the Client in connection with such orders and any resulting transactions.\n","Market Participants may Pre-Hedge for such purposes and in a manner that is not meant to disadvantage the Client or disrupt the market.","Applicable",null,"In process"]
[null,null,"Market Participants should communicate their Pre-Hedging practices to their Clients in a manner meant to enable Clients to understand their choices as to execution","Applicable",null,"In process"]
[null,null,"Market Participant should consider prevailing market conditions (such as liquidity) and the size and nature of the anticipated transaction","Applicable",null,"In process"]
[null,null,"While undertaking Pre-Hedging, a Market Participant may continue to conduct ongoing business, including risk management, market making, and execution of other Client orders.","Applicable",null,"In process"]
[null,null,"When considering whether Pre-Hedging is being undertaken in accordance with the principles above, Pre-Hedging of a single transaction should be considered within a portfolio of trading activity, which takes into account the overall exposure of the Market Participant","Applicable",null,"In process"]
[null,null,"When a Market Participant is acting as an Agent, the Market Participant should not Pre-Hedge.","Applicable",null,"In process"]

{"sheet":"P12","index":15,"n_rows":18,"n_cols":9,"rows_kept":18,"cut":false,"hidden":false,"merged":[[6,6,6,8],[6,4,6,5],[16,2,16,3],[17,2,17,3],[8,1,8,3],[6,1,7,3],[9,1,17,1],[9,2,12,2],[13,2,14,2],[15,2,15,3]]}
["Summary"]
[null,"Leading Principle:","Execution"]
[null,"Principle 12","Market Participants should not request transactions, create orders, or provide prices with the intent of disrupting market functioning or hindering the price discovery process."]
[null,"Applicability:","Applicable"]
[null,"Lead business area:","Business Area"]
[]
[null,"KENYA FOREIGN EXCHANGE CODE PRINCIPLE",null,null,"APPLICABILITY",null,"ADHERENCE"]
[null,null,null,null,"STATUS","RATIONALE","STATUS","OUR PRACTICE","COMMENTS"]
[null,null,null,null,"Check whether this principle is applicable to the institution's FX activities","Provide reasoning on the principle's applicability to the institution's FX activities","Check whether the instititution is adhering to this principle","Outline the institution's practices","Provide any further comments"]
[null,"Market Participants should not request transactions, create orders, or provide prices with the intent of disrupting market functioning or hindering the price discovery process.","Market Participants should not engage in trading strategies or quote prices with the intent of hindering market functioning or compromising market integrity. Such strategies include:","undue latency","Applicable",null,"In process"]
[null,null,null,"artificial price movements","Applicable",null,"In process"]
[null,null,null,"delays in other Market Participants’ transactions","Applicable",null,"In process"]
[null,null,null,"a false impression of market price, depth, or liquidity","Applicable",null,"In process"]
[null,null,"Such strategies also include collusive and/or manipulative practices, including but not limited to:","a trader enters a bid or offer with the intent to cancel before execution (sometimes referred to as “spoofing,” “flashing.” or “layering”)","Applicable",null,"In process"]
[null,null,null,"create a false sense of market price, depth, or liquidity (sometimes referred to as “quote stuffing” or “wash trades”)","Applicable",null,"In process"]
[null,null,"Market Participants providing quotations should always do so with a clear intent to trade. Prices provided for reference purposes only should clearly be labelled as such.",null,"Applicable",null,"In process"]
[null,null,"Market Participants should give appropriate consideration to market conditions and the potential impact of their transactions and orders. Transactions should be conducted at prices or rates based on the prevailing market conditions at the time of the transaction. Exceptions to this, such as historical rate rollovers, should be covered by internal compliance policies.",null,"Applicable",null,"In process"]
[null,null,"Without limitation, Market Participants handling Client orders may decline a transaction when there are grounds to believe that the intent is to disrupt or distort market functioning. Market Participants should escalate as appropriate.",null,"Applicable",null,"In process"]

{"sheet":"P13","index":16,"n_rows":11,"n_cols":8,"rows_kept":11,"cut":false,"hidden":false,"merged":[[6,1,7,2],[6,5,6,7],[9,1,10,1]]}
["Summary"]
[null,"Leading Principle:","Execution"]
[null,"Principle 13","Market Participants should understand how reference prices, including highs and lows, are established in connection with their transactions and/or orders."]
[null,"Applicability:","Applicable"]
[null,"Lead business area:","Business Area"]
[]
[null,"KENYA FOREIGN EXCHANGE CODE PRINCIPLE",null,"APPLICABILITY",null,"ADHERENCE"]
[null,null,null,"STATUS","RATIONALE","STATUS","OUR PRACTICE","COMMENTS"]
[null,null,null,"Check whether this principle is applicable to the institution's FX activities","Provide reasoning on the principle's applicability to the institution's FX activities","Check whether the instititution is adhering to this principle","Outline the institution's practices","Provide any further comments"]
[null,"Market Participants should understand how reference prices, including highs and lows, are established in connection with their transactions and/or orders.","This understanding should be supported by appropriate communications between the parties, which may include disclosures. ","Applicable",null,"In process"]
[null,null,"In the event that a third-party pricing source is an input in establishing this reference price, both parties should understand how that pricing measure is determined and what the contingency arrangements are in the event that the third-party pricing is unavailable.","Applicable",null,"In process"]

{"sheet":"P14","index":17,"n_rows":16,"n_cols":8,"rows_kept":16,"cut":false,"hidden":false,"merged":[[13,1,14,1],[15,1,15,2],[6,1,7,2],[6,3,6,4],[6,5,6,7],[8,1,8,2],[9,1,12,1]]}
["Summary"]
[null,"Leading Principle:","Execution"]
[null,"Principle 14","The Mark Up applied to Client transactions by Market Participants acting as Principal should be fair and reasonable."]
[null,"Applicability:","Applicable"]
[null,"Lead business area:","Business Area"]
[]
[null,"KENYA FOREIGN EXCHANGE CODE PRINCIPLE",null,"APPLICABILITY",null,"ADHERENCE"]
[null,null,null,"STATUS","RATIONALE","STATUS","OUR PRACTICE","COMMENTS"]
[null,null,null,"Check whether this principle is applicable to the institution's FX activities","Provide reasoning on the principle's applicability to the institution's FX activities","Check whether the instititution is adhering to this principle","Outline the institution's practices","Provide any further comments"]
[null,"Market Participants should promote transparency by documenting and publishing a set of disclosures regarding their FX business that, among other things","makes it clear to Clients that their final transaction price may be inclusive of Mark Up","Applicable",null,"In process"]
[null,null,"makes it clear to Clients that different Clients may receive different prices for transactions that are the same or similar","Applicable",null,"In process"]
[null,null,"helps Clients understand the determination of Mark Up, such as by indicating the factors that may contribute to the Mark Up (including those related to the nature of the specific transaction and those associated with the broader Client relationship, as well as any relevant operating costs)","Applicable",null,"In process"]
[null,null,"discloses to Clients how Mark Up may impact the pricing and/or execution of any order linked to or triggered at a specific level","Applicable",null,"In process"]
[null,"Firms should have policies and procedures that enable personnel to determine an appropriate and fair Mark Up. These policies and procedures should include, at a minimum","guidance that prices charged to Clients should be fair and reasonable considering applicable market conditions and internal risk management practices and policies","Applicable",null,"In process"]
[null,null,"guidance that personnel should always act honestly, fairly, and professionally when determining Mark Up, including not misrepresenting any aspect of the Mark Up to the Client","Applicable",null,"In process"]
[null,"Market Participants should have processes to monitor whether their Mark Up practices are consistent with their policies and procedures, and with their disclosures to Clients. Mark Up should be subject to oversight and escalation within the Market Participant.",null,"Applicable",null,"In process"]

{"sheet":"P15","index":18,"n_rows":11,"n_cols":8,"rows_kept":11,"cut":false,"hidden":false,"merged":[[6,1,7,2],[6,3,6,4],[6,5,6,7],[8,1,8,2],[10,1,10,2],[9,1,9,2]]}
["Summary"]
[null,"Leading Principle:","Execution"]
[null,"Principle 15","Market Participants should identify and resolve trade discrepancies as soon as practicable to contribute to a well-functioning FX Market."]
[null,"Applicability:","Applicable"]
[null,"Lead business area:","Business Area"]
[]
[null,"KENYA FOREIGN EXCHANGE CODE PRINCIPLE",null,"APPLICABILITY",null,"ADHERENCE"]
[null,null,null,"STATUS","RATIONALE","STATUS","OUR PRACTICE","COMMENTS"]
[null,null,null,"Check whether this principle is applicable to the institution's FX activities","Provide reasoning on the principle's applicability to the institution's FX activities","Check whether the instititution is adhering to this principle","Outline the institution's practices","Provide any further comments"]
[null,"Market Participants should have effective policies and procedures designed to minimise the number of trade discrepancies arising from their FX Market activities and should manage such discrepancies promptly",null,"Applicable",null,"In process"]
[null,"When anonymous market access is provided on an FX E-Trading Platform, the access provider should assist in the resolution of trade discrepancies. See Principle 45 for confirmation and settlemement discrepancies.",null,"Applicable",null,"In process"]

{"sheet":"P16","index":19,"n_rows":19,"n_cols":8,"rows_kept":19,"cut":false,"hidden":false,"merged":[[17,1,17,2],[18,1,18,2],[6,1,7,2],[6,3,6,4],[6,5,6,7],[9,1,9,2],[10,1,10,2],[11,1,15,1],[16,1,16,2]]}
["Summary"]
[null,"Leading Principle:","Execution"]
[null,"Principle 16","Market Participants providing algorithmic trading or aggregation services to Clients should provide adequate disclosure regarding how they operate."]
[null,"Applicability:","Applicable"]
[null,"Lead business area:","Business Area"]
[]
[null,"KENYA FOREIGN EXCHANGE CODE PRINCIPLE",null,"APPLICABILITY",null,"ADHERENCE"]
[null,null,null,"STATUS","RATIONALE","STATUS","OUR PRACTICE","COMMENTS"]
[null,null,null,"Check whether this principle is applicable to the institution's FX activities","Provide reasoning on the principle's applicability to the institution's FX activities","Check whether the instititution is adhering to this principle","Outline the institution's practices","Provide any further comments"]
[null,"Market Participants may provide Clients with algorithmic trading services that use computer programs applying algorithms to determine various aspects, including price and quantity of orders.",null,"Applicable",null,"In process"]
[null,"Market Participants may also provide aggregation services to Clients, services that provide access to multiple liquidity sources or execution venues and that may include order routing to those liquidity sources or venues.",null,"Applicable",null,"In process"]
[null,"Market Participants providing algorithmic trading or aggregation services to Clients\nshould disclose the following:","a clear description of the algorithmic execution strategy or the aggregation strategy and sufficient information to enable the Client to evaluate the performance of the service, in a manner that is consistent with appropriate protection of related Confidential Information","Applicable",null,"In process"]
[null,null,"whether the algorithm provider or the aggregation service provider could execute as Principal","Applicable",null,"In process"]
[null,null,"the fees applicable to the provision of the services","Applicable",null,"In process"]
[null,null,"in the case of algorithmic trading services, general information regarding how routing\npreferences may be determined","Applicable",null,"In process"]
[null,null,"in the case of aggregation services, information on the liquidity sources to which\naccess may be provided","Applicable",null,"In process"]
[null,"Market Participants providing algorithmic trading or aggregation services should disclose any conflicts of interest that could impact the handling of any client order (for example, arising from their interaction with their own principal liquidity, or particular commercial interests in trading venues or other relevant service providers) and how such conflicts are addressed.",null,"Applicable",null,"In process"]
[null,"Market Participants providing algorithmic trading services to Clients are encouraged to share disclosure information in a market-wide standardised format to allow Clients to more easily compare and understand the services. Such disclosure information should be easily available to both existing and prospective Clients – for example, by being shared bilaterally or made available publicly on the provider’s website.",null,"Applicable",null,"In process"]
[null,"Market Participants providing algorithmic trading or aggregation services should provide services that perform in the manner disclosed to the Client.",null,"Applicable",null,"In process"]

{"sheet":"P17","index":20,"n_rows":16,"n_cols":8,"rows_kept":16,"cut":false,"hidden":false,"merged":[[10,1,10,2],[6,1,7,2],[6,3,6,4],[6,5,6,7],[8,1,8,2],[9,1,9,2],[11,1,11,2],[12,1,12,2],[13,1,13,2],[14,1,14,2],[15,1,15,2]]}
["Summary"]
[null,"Leading Principle:","Information sharing (Handling Confidential Information)"]
[null,"Principle 17","Market Participants should clearly and effectively identify and appropriately limit access to confidential information."]
[null,"Applicability:","Applicable"]
[null,"Lead business area:","Business Area"]
[]
[null,"KENYA FOREIGN EXCHANGE CODE PRINCIPLE",null,"APPLICABILITY",null,"ADHERENCE"]
[null,null,null,"STATUS","RATIONALE","STATUS","OUR PRACTICE","COMMENTS"]
[null,null,null,"Check whether this principle is applicable to the institution's FX activities","Provide reasoning on the principle's applicability to the institution's FX activities","Check whether the instititution is adhering to this principle","Outline the institution's practices","Provide any further comments"]
[null,"Market Participants should clearly and effectively identify and appropriately limit access to Confidential Information. Confidential Information includes the following information not in the public domain received or created by a\nMarket Participant:\n(i) FX Trading Information. This can take various forms, including information relating to the past, present and future trading activity or positions of the Market Participant itself or of its Clients, as well as related information that is sensitive and is received or produced in the course of such activity. Examples include but are not limited to:\n√ details of a Market Participant’s order book;\n√ other Market Participants’ Axes;\n√ spread matrices provided by Market Participants to their Clients;\n(ii) Designated Confidential Information. Market Participants may agree to a higher standard of non-disclosure with respect to confidential, proprietary, and other information, which may be formalised in a written non-disclosure or a similar confidentiality agreement.",null,"Applicable",null,"In process"]
[null,"Identification of Confidential Information should be in line with any legal or contractual restrictions to which the Market Participant may be subject.",null,"Applicable",null,"In process"]
[null,"Market Participants should not disclose Confidential Information except to those internal or external parties who have a valid reason for receiving such information, such as to meet risk management, legal, and compliance needs. ",null,"Applicable",null,"In process"]
[null,"Market Participants should not disclose Confidential Information to any internal or external parties under any circumstances where it appears likely that such party will misuse the information",null,"Applicable",null,"In process"]
[null,"Confidential Information obtained from a Client, prospective Client, or other third party is to be used only for the specific purpose for which it was given, except as provided above or otherwise agreed with a Client",null,"Applicable",null,"In process"]
[null,"Market Participants should disclose at a high level , e.g, risk document, stategy document, etc how Confidential Information, in the form of FX Trading Information, is shared internally in accordance with this Principle.",null,"Applicable",null,"In process"]
[null,"Operators of trading platforms that feature tags should ensure that the practice of “re-tagging” is fit for purpose, and not used to facilitate trading among participants where one party has already previously requested to avoid facing another. ",null,"Applicable",null,"In process"]

{"sheet":"P18","index":21,"n_rows":17,"n_cols":8,"rows_kept":17,"cut":false,"hidden":false,"merged":[[15,1,15,2],[16,1,16,2],[6,1,7,2],[6,3,6,4],[6,5,6,7],[8,1,8,2],[9,1,13,1],[14,1,14,2]]}
["Summary"]
[null,"Leading Principle:","Information sharing (Handling Confidential Information)"]
[null,"Principle 18","Market Participants should not disclose Confidential Information to external parties, except under specific circumstances."]
[null,"Applicability:","Applicable"]
[null,"Lead business area:","Business Area"]
[]
[null,"KENYA FOREIGN EXCHANGE CODE PRINCIPLE",null,"APPLICABILITY",null,"ADHERENCE"]
["i",null,null,"STATUS","RATIONALE","STATUS","OUR PRACTICE","COMMENTS"]
[null,null,null,"Check whether this principle is applicable to the institution's FX activities","Provide reasoning on the principle's applicability to the institution's FX activities","Check whether the instititution is adhering to this principle","Outline the institution's practices","Provide any further comments"]
[null,"Market Participants should disclose Confidential Information only under certain circumstances. These may include, but are not limited to, disclosure:","to Agents, market intermediaries (such as brokers or trading platforms), or other Market Participants to the extent necessary for executing, processing, clearing, novating, or settling a transaction","Applicable",null,"In process"]
[null,null,"with the consent of the counterparty or Client","Applicable",null,"In process"]
[null,null,"required to be publicly disclosed under Applicable Law, or as otherwise requested by a relevant regulatory or public authority","Applicable",null,"In process"]
[null,null,"as requested by the Bank acting for policy purposes","Applicable",null,"In process"]
[null,null,"as part of a non-disclosure agreement (NDA) to advisors or consultants on the condition that they protect the Confidential Information in the same manner as the Market Participant that is disclosing the Confidential Information to such advisors or consultants.","Applicable",null,"In process"]
[null,"Market Participants may actively choose to share their own prior positions and/or trading activity so long as that information does not reveal any other party’s Confidential Information and the information is not shared in order to disrupt market function or hinder the price discovery process, or in furtherance of other manipulative or collusive practices.",null,"Applicable",null,"In process"]
[null,"Market Participants should only ask for Confidential Information where it is appropriate to do so consistent with Principle 18.",null,"Applicable",null,"In process"]
[null,"When determining whether to release Confidential Information, Market Participants should take into account Applicable Law, as well as any agreed-to restrictions that may limit the release.",null,"Applicable",null,"In process"]

{"sheet":"P19","index":22,"n_rows":15,"n_cols":8,"rows_kept":15,"cut":false,"hidden":false,"merged":[[6,1,7,2],[6,3,6,4],[6,5,6,7],[9,1,13,1],[14,1,14,2]]}
["Summary"]
[null,"Leading Principle:","Information sharing (Communications)"]
[null,"Principle 19","Market Participants should communicate in a manner that is clear, accurate, professional, and not misleading."]
[null,"Applicability:","Applicable"]
[null,"Lead business area:","Business Area"]
[]
[null,"KENYA FOREIGN EXCHANGE CODE PRINCIPLE",null,"APPLICABILITY",null,"ADHERENCE"]
[null,null,null,"STATUS","RATIONALE","STATUS","OUR PRACTICE","COMMENTS"]
[null,null,null,"Check whether this principle is applicable to the institution's FX activities","Provide reasoning on the principle's applicability to the institution's FX activities","Check whether the instititution is adhering to this principle","Outline the institution's practices","Provide any further comments"]
[null,"Communications should be easily understood by their intended recipient. Therefore, Market Participants should use terminology and language that is appropriate for the audience and should avoid using ambiguous terms. To support the accuracy and integrity of information, Market Participants should:","attribute information derived from a third party to that third party (for example, a news service)","Applicable",null,"In process"]
[null,null,"identify opinions clearly as opinions","Applicable",null,"In process"]
[null,null,"not communicate false information","Applicable",null,"In process"]
[null,null,"exercise judgement when discussing rumours that may be driving price movements, identify rumours as rumours, and not spread or start rumours with the intention of moving markets or deceiving other Market Participants","Applicable",null,"In process"]
[null,null,"not provide misleading information in order to protect Confidential Information—for example, when executing partial orders. Accordingly, Market Participants could, if asked, decline to disclose whether their request to transact is for the full amount rather than inaccurately suggest that it is for the full amount","Applicable",null,"In process"]
[null,"Market Participants should be mindful that communications by personnel reflect on the firm they represent as well as the industry more broadly",null,"Applicable",null,"In process"]

{"sheet":"P20","index":23,"n_rows":20,"n_cols":8,"rows_kept":20,"cut":false,"hidden":false,"merged":[[19,1,24,7],[10,1,18,1],[6,1,7,2],[6,3,6,4],[6,5,6,7],[8,1,8,2],[9,1,9,2]]}
["Summary"]
[null,"Leading Principle:","Information sharing (Communications)"]
[null,"Principle 20","Market Participants should communicate Market Colour appropriately and without compromising confidential information."]
[null,"Applicability:","Applicable"]
[null,"Lead business area:","Business Area"]
[]
[null,"KENYA FOREIGN EXCHANGE CODE PRINCIPLE",null,"APPLICABILITY",null,"ADHERENCE"]
[null,null,null,"STATUS","RATIONALE","STATUS","OUR PRACTICE","COMMENTS"]
[null,null,null,"Check whether this principle is applicable to the institution's FX activities","Provide reasoning on the principle's applicability to the institution's FX activities","Check whether the instititution is adhering to this principle","Outline the institution's practices","Provide any further comments"]
[null,"The timely dissemination of Market Colour between Market Participants can contribute to an efficient, open, and transparent FX Market through the exchange of information on the general state of the market, views, and anonymised and aggregated flow information.\n\nFirms should give clear guidance to personnel on how to appropriately share Market Colour. In particular, communications should be restricted to information that is\neffectively aggregated and anonymised.",null,"Applicable",null,"In process"]
[null,"Market Participants should communicate Market Colour appropriately and without compromising Confidential Information.","communications should not include specific Client names, other mechanisms for communicating a Client’s identity or trading patterns externally (for example, code names that implicitly link activity to a specific Market Participant), or information specific to any individual Client","Applicable",null,"In process"]
[null,null,"Client groups, locations, and strategies should be referred to at a level of generality that does not allow Market Participants to derive the underlying Confidential Information","Applicable",null,"In process"]
[null,null,"communications should be restricted to sharing market views and levels of conviction, and should not disclose information about individual trading positions","Applicable",null,"In process"]
[null,null,"flows should be disclosed only by price range and not by exact rates relating to a single Client or flow, and volumes should be referred to in general terms, other than publicly reported trading activity","Applicable",null,"In process"]
[null,null,"option interest not publicly reported should only be discussed in terms of broadly observed structures and thematic interest","Applicable",null,"In process"]
[null,null,"references to the time of execution should be general, except where this trading information is broadly observable","Applicable",null,"In process"]
[null,null,"Market Participants should take care when providing information to Clients about the status of orders (including aggregated and anonymised Fixing Orders) to protect the interests of other Market Participants to whom the information relates (this is particularly true when there are multiple orders at the same level or in close proximity to one another)","Applicable",null,"In process"]
[null,null," Market Participants should not solicit Confidential Information in the course of providing or receiving Market Colour;","Applicable",null,"In process"]
[null,null,"operators of trading platforms that feature tags should only disclose user information (colour) that has been clearly stated in their disclosure documents (including rulebooks, guidelines, etc); and ","Applicable",null,"In process"]
[null,"Footnote: The responsibility of conveying accurate and up-to-date Statement of Commitment signatory status to the platform falls entirely on the user, whereas the platform is responsible only for storing and reporting this information as presented by that user and is not making any representation regarding the conduct of the user. Should there be any changes to the Statement of Commitment status of the user, the obligation is on the user to update the platform with that information."]

{"sheet":"P21","index":24,"n_rows":17,"n_cols":8,"rows_kept":17,"cut":false,"hidden":false,"merged":[[15,1,15,2],[16,1,16,2],[6,1,7,2],[6,3,6,4],[6,5,6,7],[9,1,9,2],[10,1,13,1],[14,1,14,2]]}
["Summary"]
[null,"Leading Principle:","Information sharing (Communications)"]
[null,"Principle 21","Market Participants should provide personnel with clear guidance on approved modes and channels of communication."]
[null,"Applicability:","Applicable"]
[null,"Lead business area:","Business Area"]
[]
[null,"KENYA FOREIGN EXCHANGE CODE PRINCIPLE",null,"APPLICABILITY",null,"ADHERENCE"]
[null,null,null,"STATUS","RATIONALE","STATUS","OUR PRACTICE","COMMENTS"]
[null,null,null,"Check whether this principle is applicable to the institution's FX activities","Provide reasoning on the principle's applicability to the institution's FX activities","Check whether the instititution is adhering to this principle","Outline the institution's practices","Provide any further comments"]
[null,"Market Participants should provide personnel with clear guidance on approved modes and channels of communication",null,"Applicable",null,"In process"]
[null,"Market Participants should communicate with other Market Participants through approved methods of communication that allow for:","traceability,","Applicable",null,"In process"]
[null,null,"auditing,","Applicable",null,"In process"]
[null,null,"record keeping","Applicable",null,"In process"]
[null,null,"access control","Applicable",null,"In process"]
[null,"Standards of information security should apply regardless of the specific mode of communication in use.",null,"Applicable",null,"In process"]
[null,"Where possible, Market Participants should maintain a list of approved modes of communication and it is recommended that communication channels on sales and trading desks be recorded, particularly when being used to transact or share Market Colour.",null,"Applicable",null,"In process"]
[null,"Market Participants should give consideration, under exceptional circumstances (for example, in an emergency and for business continuity purposes), to allowing the use of unrecorded lines but should provide guidance to personnel regarding any permitted use of such unrecorded lines or devices.",null,"Applicable",null,"In process"]

{"sheet":"P22","index":25,"n_rows":14,"n_cols":9,"rows_kept":14,"cut":false,"hidden":false,"merged":[[6,1,7,3],[6,4,6,5],[6,6,6,8],[8,1,8,3],[9,1,13,1],[9,2,10,2],[11,2,11,3],[12,2,12,3],[13,2,13,3]]}
["Summary"]
[null,"Leading Principle:","Risk Management and Compliance (Frameworks)"]
[null,"Principle 22","Market Participants should have frameworks for risk management and compliance."]
[null,"Applicability:","Applicable"]
[null,"Lead business area:","Business Area"]
[]
[null,"KENYA FOREIGN EXCHANGE CODE PRINCIPLE",null,null,"APPLICABILITY",null,"ADHERENCE"]
[null,null,null,null,"STATUS","RATIONALE","STATUS","OUR PRACTICE","COMMENTS"]
[null,null,null,null,"Check whether this principle is applicable to the institution's FX activities","Provide reasoning on the principle's applicability to the institution's FX activities","Check whether the instititution is adhering to this principle","Outline the institution's practices","Provide any further comments"]
[null,"Market Participants should have frameworks for risk management and compliance. The common components of these two frameworks may include:","Effective oversight by the senior body or individual(s), consistent with Principle 4, including support for the stature and independence of risk management and compliance. In particular:","the Board should make strategic decisions on the risk appetite of the FX business.","Applicable",null,"In process"]
[null,null,null,"the Board should be responsible for the establishment, communication, enforcement, and regular review of a risk management and compliance framework that clearly specifies authorities, limits, and policies. Risks should be managed prudently and responsibly in accordance with established principles of risk management and Applicable Law.","Applicable",null,"In process"]
[null,null,"The provision of concise, timely, accurate, and understandable risk- and compliance related information to the Board.",null,"Applicable",null,"In process"]
[null,null,"The appropriate segregation of duties and independent reporting lines, including the segregation of trading from risk management and compliance and from deal processing, accounting, and settlement. While risk managers and compliance personnel may work closely with business units, the risk management and compliance functions should be independent of the business unit and should not be directly involved in revenue generation. Compensation structures should be designed not to compromise such independence.",null,"Applicable",null,"In process"]
[null,null,"Adequate resources and employees with clearly specified roles, responsibilities, and authority, including appropriate access to information and systems. These personnel should have appropriate knowledge, experience, and training.",null,"Applicable",null,"In process"]

{"sheet":"P23","index":26,"n_rows":18,"n_cols":8,"rows_kept":18,"cut":false,"hidden":false,"merged":[[6,1,7,2],[6,3,6,4],[6,5,6,7],[9,1,17,1]]}
["Summary"]
[null,"Leading Principle:","Risk Management and Compliance (Frameworks for Risk Management, Compliance and Review)"]
[null,"Principle 23","Market Participants should familiarise themselves with, and abide by, all Applicable Law and Standards that are relevant to their FX Market activities and should have an appropriate compliance framework in place"]
[null,"Applicability:","Applicable"]
[null,"Lead business area:","Business Area"]
[]
[null,"KENYA FOREIGN EXCHANGE CODE PRINCIPLE",null,"APPLICABILITY",null,"ADHERENCE"]
[null,null,null,"STATUS","RATIONALE","STATUS","OUR PRACTICE","COMMENTS"]
[null,null,null,"Check whether this principle is applicable to the institution's FX activities","Provide reasoning on the principle's applicability to the institution's FX activities","Check whether the instititution is adhering to this principle","Outline the institution's practices","Provide any further comments"]
[null,"Market Participants should familiarise themselves with, and abide by, all Applicable Law and Standards that are relevant to their FX Market activities and should have an appropriate compliance framework in place. An effective compliance framework should provide independent oversight and control and could comprise, but is not limited to:","identification of Applicable Law and Standards that apply to their FX business","Applicable",null,"In process"]
[null,null,"appropriate processes designed to prevent and detect abusive, collusive, or manipulative practices, fraud, and financial crime, and to mitigate material risk that could arise in the general conduct of the FX business","Applicable",null,"In process"]
[null,null,"capturing and retaining adequate records to enable effective monitoring of compliance with Applicable Law and Standard","Applicable",null,"In process"]
[null,null,"well-defined escalation procedures for issues identified","Applicable",null,"In process"]
[null,null,"consideration of the need to periodically restrict relevant personnel’s access through measures such as mandatory vacation to facilitate detection of possible fraudulent activities","Applicable",null,"In process"]
[null,null,"the provision of advice and guidance to senior management and personnel on the appropriate implementation of Applicable Law, external codes, and other relevant guidance in the form of policies and procedures and other documents such as compliance manuals and internal codes of conduct","Applicable",null,"In process"]
[null,null,"training and/or attestation processes to promote awareness of and compliance with Applicable Laws and Standards","Applicable",null,"In process"]
[null,null,"appropriate implementation and utilisation of compliance programs (for example, the establishment of processes to monitor daily activities and operations)","Applicable",null,"In process"]
[null,null,"the periodic review and assessment of compliance functions and controls, including mechanisms to alert senior management about material gaps or failures in such functions and controls. The appropriate senior body or individual(s) should oversee the timely resolution of any issues.","Applicable",null,"In process"]

{"sheet":"P24","index":27,"n_rows":20,"n_cols":8,"rows_kept":20,"cut":false,"hidden":false,"merged":[[19,1,19,2],[6,1,7,2],[6,3,6,4],[6,5,6,7],[8,1,8,2],[9,1,9,2],[10,1,18,1]]}
["Summary"]
[null,"Leading Principle:","Risk Management and Compliance (Frameworks for Risk Management, Compliance and Review)"]
[null,"Principle 24","Market Participants should maintain an appropriate risk management framework with systems and internal controls to identify and manage the FX risks they face."]
[null,"Applicability:","Applicable"]
[null,"Lead business area:","Business Area"]
[]
[null,"KENYA FOREIGN EXCHANGE CODE PRINCIPLE",null,"APPLICABILITY",null,"ADHERENCE"]
[null,null,null,"STATUS","RATIONALE","STATUS","OUR PRACTICE","COMMENTS"]
[null,null,null,"Check whether this principle is applicable to the institution's FX activities","Provide reasoning on the principle's applicability to the institution's FX activities","Check whether the instititution is adhering to this principle","Outline the institution's practices","Provide any further comments"]
[null,"Effective risk management starts with the identification and understanding by Market\nParticipants of the various types of risks to which they are exposed (see the section on Key Risk Types below), and typically involves the establishment of risk limits and monitoring mechanisms, as well as the adoption of risk-mitigating and other prudent practices.",null,"Applicable",null,"In process"]
[null,"Market Participants should maintain an appropriate risk management framework with systems and internal controls to identify and manage the FX risks they face. An effective risk management framework could comprise, but is not limited to:","an appropriate and well-documented approval process for the setting of risk limits","Applicable",null,"In process"]
[null,null,"a comprehensive and well-documented strategy for the identification, measurement, aggregation, and monitoring of risks across the FX business.","Applicable",null,"In process"]
[null,null,"documented policies, procedures, and controls, which are periodically reviewed and tested, to manage and mitigate risks;","Applicable",null,"In process"]
[null,null,"the clear communication of risk management policies and controls within the institution to promote awareness and compliance, as well as processes and programs to facilitate the understanding of such policies and controls by personnel","Applicable",null,"In process"]
[null,null,"information systems to facilitate the effective monitoring and timely reporting of risks","Applicable",null,"In process"]
[null,null,"robust incident management, including appropriate escalation, mitigating actions, and lessons learned;","Applicable",null,"In process"]
[null,null,"robust risk assessment for all (and approval processes for new) products, services, and procedures to identify new or emerging risks;","Applicable",null,"In process"]
[null,null,"sound accounting policies and practices encompassing prudent and consistent valuation methods and procedures","Applicable",null,"In process"]
[null,null,"an appropriately robust risk control self-assessment process that includes processes to remediate identified gaps or weaknesses","Applicable",null,"In process"]
[null,"Certain Market Participants provide credit intermediation and/or market access to other Market Participants—for example Prime Brokers and E-Trading Platforms. These Market Participants should have a risk management and compliance framework that takes this activity into account. In addition, these Market Participants are encouraged to engage in ongoing dialogue with those for whom they are providing credit intermediation and/or access to the market to underscore expectations regarding appropriate behaviour in the market.",null,"Applicable",null,"In process"]

{"sheet":"P25","index":28,"n_rows":18,"n_cols":8,"rows_kept":18,"cut":false,"hidden":false,"merged":[[17,1,17,2],[6,1,7,2],[6,3,6,4],[6,5,6,7],[8,1,8,2],[9,1,16,1]]}
["Summary"]
[null,"Leading Principle:","Risk Management and Compliance (Frameworks for Risk Management, Compliance and Review)"]
[null,"Principle 25","Market Participants should have practices in place to limit, monitor, and control the risks related to their FX Market trading activity."]
[null,"Applicability:","Applicable"]
[null,"Lead business area:","Business Area"]
[]
[null,"KENYA FOREIGN EXCHANGE CODE PRINCIPLE",null,"APPLICABILITY",null,"ADHERENCE"]
[null,null,null,"STATUS","RATIONALE","STATUS","OUR PRACTICE","COMMENTS"]
[null,null,null,"Check whether this principle is applicable to the institution's FX activities","Provide reasoning on the principle's applicability to the institution's FX activities","Check whether the instititution is adhering to this principle","Outline the institution's practices","Provide any further comments"]
[null,"Market Participants should have practices in place to limit, monitor, and control the risks related to their FX Market trading activity. ","The regular monitoring of trading activities, including the identification and internal escalation, as appropriate, of failed, cancelled, or erroneous trades.","Applicable",null,"In process"]
[null,null,"Automated or manual monitoring systems to detect actual or attempted market misconduct and market manipulation. Relevant personnel should be qualified to detect trading patterns that may suggest unfair or manipulative practices. Market Participants may use certain statistics or metrics to flag behaviour warranting further review, such as off-market rates, repetitive orders, and unusually small or large orders. There should be appropriate processes whereby suspicious practices can be promptly reviewed and escalated as appropriate.","Applicable",null,"In process"]
[null,null,"Verification of the valuations used for risk management and accounting purposes, conducted by personnel independent of the business unit that owns the risk.","Applicable",null,"In process"]
[null,null,"Independent reporting on a regular and timely basis of risk positions and trader profit/loss statements to the relevant risk management function or senior management, as appropriate, including a review of exceptional deviations of profit/loss from expected levels.","Applicable",null,"In process"]
[null,null,"Transactions should be promptly and accurately captured so that risk positions can be calculated in an accurate and timely manner for monitoring purposes (see Principle 34).","Applicable",null,"In process"]
[null,null,"Regular reconciliations of front, middle, and back office systems, with differences identified and their resolution tracked by personnel independent of the business unit.","Applicable",null,"In process"]
[null,null,"Timely reporting to a senior body or individual(s) when risk limits have been breached, including follow-up action to bring exposures within limits, and any appropriate measures to prevent a recurrence.","Applicable",null,"In process"]
[null,null,"Appropriate controls around proper order and quote submission, such as kill switches or throttles in the case of electronic trading submissions. These controls should be designed to prevent the entry or transmission of erroneous orders or quotes that exceed pre-set size and price parameters as well as financial exposure thresholds.","Applicable",null,"In process"]
[null,"Market Participants should be aware of the risks associated with reliance on a single source of liquidity and incorporate contingency plans as appropriate.",null,"Applicable",null,"In process"]

{"sheet":"P26","index":29,"n_rows":13,"n_cols":8,"rows_kept":13,"cut":false,"hidden":false,"merged":[[6,1,7,2],[6,3,6,4],[6,5,6,7],[9,1,12,1]]}
["Summary"]
[null,"Leading Principle:","Risk Management and Compliance (Frameworks for Risk Management, Compliance and Review)"]
[null,"Principle 26","Market Participants should have processes in place to independently review the effectiveness of and adherence to the risk management and compliance functions."]
[null,"Applicability:","Applicable"]
[null,"Lead business area:","Business Area"]
[]
[null,"KENYA FOREIGN EXCHANGE CODE PRINCIPLE",null,"APPLICABILITY",null,"ADHERENCE"]
[null,null,null,"STATUS","RATIONALE","STATUS","OUR PRACTICE","COMMENTS"]
[null,null,null,"Check whether this principle is applicable to the institution's FX activities","Provide reasoning on the principle's applicability to the institution's FX activities","Check whether the instititution is adhering to this principle","Outline the institution's practices","Provide any further comments"]
[null,"Market Participants should have processes in place to independently review the effectiveness of and adherence to the risk management and compliance functions.","Independent review should be performed regularly, with any review findings recorded and corrective action tracked.","Applicable",null,"In process"]
[null,null,"All material risk related to FX Market activities should be covered, using an appropriate assessment methodology","Applicable",null,"In process"]
[null,null,"The review team should be given the necessary mandate and support, including adequate personnel with requisite experience or expertise.","Applicable",null,"In process"]
[null,null,"Findings should be reported to an appropriately senior level for review and follow-up.","Applicable",null,"In process"]

{"sheet":"P27","index":30,"n_rows":16,"n_cols":8,"rows_kept":16,"cut":false,"hidden":false,"merged":[[12,1,12,2],[13,1,15,1],[6,1,7,2],[6,3,6,4],[6,5,6,7],[9,1,9,2],[10,1,10,2],[11,1,11,2]]}
["Summary"]
[null,"Leading Principle:","Risk Management and Compliance (Key Risk Types)"]
[null,"Principle 27","Market Participants should have adequate processes to manage counterparty credit risk exposure, including where appropriate, through the use of appropriate collateral arrangements."]
[null,"Applicability:","Applicable"]
[null,"Lead business area:","Business Area"]
[]
[null,"KENYA FOREIGN EXCHANGE CODE PRINCIPLE",null,"APPLICABILITY",null,"ADHERENCE"]
[null,null,null,"STATUS","RATIONALE","STATUS","OUR PRACTICE","COMMENTS"]
[null,null,null,"Check whether this principle is applicable to the institution's FX activities","Provide reasoning on the principle's applicability to the institution's FX activities","Check whether the instititution is adhering to this principle","Outline the institution's practices","Provide any further comments"]
[null,"Market Participants should have adequate processes to manage counterparty credit risk exposure, including where appropriate, through the use of appropriate collateral arrangements.",null,"Applicable",null,"In process"]
[null,"Other measures to manage counterparty credit risk include the accurate and timely assessment of a counterparty’s creditworthiness prior to a transaction, sufficient diversification of counterparty exposure where appropriate, the prompt setting and monitoring of counterparty exposure limits, and the acceptance of transactions only if they fall within approved limits.",null,"Applicable",null,"In process"]
[null,"Credit limits should be set independently of the front office, and should reflect the established risk appetite of the Market Participant",null,"Applicable",null,"In process"]
[null,"Market Participants should maintain accurate records material to their counterparty relationships. This could include records of conversations and written correspondence, and retention policies should be aligned with Applicable Law.",null,"Applicable",null,"In process"]
[null,"FX E-Trading Platforms that have multiple liquidity providers and consumers should at a minimum disclose the following as it relates to credit monitoring: ","what mechanisms and/or controls are in place to set, amend, and monitor all applicable credit limits; ","Applicable",null,"In process"]
[null,null,"whether and how the responsibility of monitoring credit limit breaches fall upon the platform or the users, and which parties are responsible for resolving credit limit breaches; and ","Applicable",null,"In process"]
[null,null," what specific methodologies are used to calculate credit exposures","Applicable",null,"In process"]

{"sheet":"P28","index":31,"n_rows":13,"n_cols":8,"rows_kept":13,"cut":false,"hidden":false,"merged":[[12,1,12,2],[6,1,7,2],[6,3,6,4],[6,5,6,7],[8,1,8,2],[9,1,11,1]]}
["Summary"]
[null,"Leading Principle:","Risk Management and Compliance (Key Risk Types)"]
[null,"Principle 28","Market Participants should have processes to measure, monitor, report, and manage market risk in an accurate and timely way."]
[null,"Applicability:","Applicable"]
[null,"Lead business area:","Business Area"]
[]
[null,"KENYA FOREIGN EXCHANGE CODE PRINCIPLE",null,"APPLICABILITY",null,"ADHERENCE"]
[null,null,null,"STATUS","RATIONALE","STATUS","OUR PRACTICE","COMMENTS"]
[null,null,null,"Check whether this principle is applicable to the institution's FX activities","Provide reasoning on the principle's applicability to the institution's FX activities","Check whether the instititution is adhering to this principle","Outline the institution's practices","Provide any further comments"]
[null,"Market Participants should have processes to measure, monitor, report, and manage market risk in an accurate and timely way. Changes in FX prices or rates give rise to market risk, which could have an adverse\neffect on the financial condition of Market Participants.","Market risk measurement should be based on generally accepted measurement techniques and concepts, including the use of stress testing.","Applicable",null,"In process"]
[null,null,"Such measurement techniques should be periodically and independently reviewed.","Applicable",null,"In process"]
[null,null,"The measurement of market risk should take into account hedging and diversification effects.","Applicable",null,"In process"]
[null,"Market Participants should be aware of, monitor, and - where appropriate - mitigate the liquidity risk that could arise from their transactions in the FX Market.",null,"Applicable",null,"In process"]

{"sheet":"P29","index":32,"n_rows":14,"n_cols":8,"rows_kept":14,"cut":false,"hidden":false,"merged":[[13,1,13,2],[6,1,7,2],[6,3,6,4],[6,5,6,7],[9,1,11,1],[12,1,12,2]]}
["Summary"]
[null,"Leading Principle:","Risk Management and Compliance (Key Risk Types)"]
[null,"Principle 29","Market Participants should have independent processes in place to mark-to-market trading positions to measure the size of their profit and loss and the market risk arising from trading positions."]
[null,"Applicability:","Applicable"]
[null,"Lead business area:","Business Area"]
[]
[null,"KENYA FOREIGN EXCHANGE CODE PRINCIPLE",null,"APPLICABILITY",null,"ADHERENCE"]
[null,null,null,"STATUS","RATIONALE","STATUS","OUR PRACTICE","COMMENTS"]
[null,null,null,"Check whether this principle is applicable to the institution's FX activities","Provide reasoning on the principle's applicability to the institution's FX activities","Check whether the instititution is adhering to this principle","Outline the institution's practices","Provide any further comments"]
[null,"Market Participants should have independent processes in place to mark-to-market trading positions to measure the size of their profit and loss and the market risk arising from trading positions. In marking-to-market trading positions, quoted market prices, where available, are generally the best guide. When obtaining external data for valuation purposes:","useful sources of data include screen services, brokers, and other third-party providers","Applicable",null,"In process"]
[null,null,"a function independent of the front office should check that prices and marked-to-market valuations are measured accurately and regularly","Applicable",null,"In process"]
[null,null,"there should be understanding of what the data represent - for example, if the price was the last actual trade, when the last trade was executed, and if prices were not actual trades how these were calculated","Applicable",null,"In process"]
[null,"Market Participants should have an internal agreed close of business for each trading day against which end-of-day positions can be monitored and evaluated.",null,"Applicable",null,"In process"]
[null,"Where reference market prices are not available (for example, in marking-to-market complex derivatives or exotic instruments), internal models, validated by an internal function that is independent from the front office, can be used to guide the appropriate pricing of risks.",null,"Applicable",null,"In process"]

{"sheet":"P30","index":33,"n_rows":17,"n_cols":8,"rows_kept":17,"cut":false,"hidden":false,"merged":[[16,1,16,2],[6,1,7,2],[6,3,6,4],[6,5,6,7],[9,1,14,1],[15,1,15,2]]}
["Summary"]
[null,"Leading Principle:","Risk Management and Compliance (Key Risk Types)"]
[null,"Principle 30","Market Participants should have appropriate processes in place to identify and manage operational risks that may arise from human error, inadequate or failed systems or processes, or external events."]
[null,"Applicability:","Applicable"]
[null,"Lead business area:","Business Area"]
[]
[null,"KENYA FOREIGN EXCHANGE CODE PRINCIPLE",null,"APPLICABILITY",null,"ADHERENCE"]
[null,null,null,"STATUS","RATIONALE","STATUS","OUR PRACTICE","COMMENTS"]
[null,null,null,"Check whether this principle is applicable to the institution's FX activities","Provide reasoning on the principle's applicability to the institution's FX activities","Check whether the instititution is adhering to this principle","Outline the institution's practices","Provide any further comments"]
[null,"Market Participants should take into consideration operational risks arising from ","time differences","Applicable",null,"In process"]
[null,null,"differences in industry conventions","Applicable",null,"In process"]
[null,null,"human error","Applicable",null,"In process"]
[null,null,"misconduct","Applicable",null,"In process"]
[null,null,"systems issues","Applicable",null,"In process"]
[null,null,"unforeseen external circumstances","Applicable",null,"In process"]
[null,"Market Participants should put in place strict security measures to address the vulnerability of trading areas and infrastructure to possible operational disruptions, terrorism, sabotage.",null,"Applicable",null,"In process"]
[null,"Access to the dealing function should be controlled, with procedures in place that specify time constraints, security checks, and management approvals around access, where appropriate, for non-dealing personnel and external visitors.",null,"Applicable",null,"In process"]

{"sheet":"P31","index":34,"n_rows":15,"n_cols":8,"rows_kept":15,"cut":false,"hidden":false,"merged":[[6,1,7,2],[6,3,6,4],[6,5,6,7],[9,1,14,1]]}
["Summary"]
[null,"Leading Principle:","Risk Management and Compliance (Key Risk Types)"]
[null,"Principle 31","Market Participants should have business continuity plans (BCPs) in place that are appropriate to the nature, scale, and complexity of their FX business and that can be implemented quickly and effectively in the event of large-scale disasters, loss of access to significant trading platforms, settlement, or other critical services, or other market disruptions."]
[null,"Applicability:","Applicable"]
[null,"Lead business area:","Business Area"]
[]
[null,"KENYA FOREIGN EXCHANGE CODE PRINCIPLE",null,"APPLICABILITY",null,"ADHERENCE"]
[null,null,null,"STATUS","RATIONALE","STATUS","OUR PRACTICE","COMMENTS"]
[null,null,null,"Check whether this principle is applicable to the institution's FX activities","Provide reasoning on the principle's applicability to the institution's FX activities","Check whether the instititution is adhering to this principle","Outline the institution's practices","Provide any further comments"]
[null,"BCPs could comprise, but are not limited to, the following elements:","Contingency plans that support business continuity across the FX business, including plans related to data storage and usage, and procedures in the event of the non- availability of FX fixes, where relevant.","Applicable",null,"In process"]
[null,null,"The regular review, updating, and testing of contingency plans, including drills to familiarise senior management and relevant personnel with the arrangements under a contingent situation. This should include the regular review of potential scenarios that would require the activation of such plans.","Applicable",null,"In process"]
[null,null,"Disaster recovery plans that identify requisite systems and procedural backups. All critical automated processes as determined by the Market Participant should have a documented automated and/or manual contingency.","Applicable",null,"In process"]
[null,null,"The identification of external dependencies, including an understanding of the BCPs of settlement system operators and other infrastructure and critical service providers, as well as the appropriate inclusion of these plans, or other back-up processes, into Market Participants’ own BCPs.","Applicable",null,"In process"]
[null,null,"Emergency contact information for both internal and external dependencies. Communication tools should be secure.","Applicable",null,"In process"]
[null,null,"Non-primary location backup sites that can accommodate essential personnel, systems, and operations, and that are maintained and tested on a regular basis.","Applicable",null,"In process"]

{"sheet":"P32","index":35,"n_rows":16,"n_cols":8,"rows_kept":16,"cut":false,"hidden":false,"merged":[[6,1,7,2],[6,3,6,4],[6,5,6,7],[15,1,15,2],[9,1,11,1],[12,1,12,2],[13,1,13,2],[14,1,14,2]]}
["Summary"]
[null,"Leading Principle:","Risk Management and Compliance (Key Risk Types)"]
[null,"Principle 32","Market Participants should have in place processes to address potential adverse outcomes arising from the use of or reliance on technological systems (hardware and software)."]
[null,"Applicability:","Applicable"]
[null,"Lead business area:","Business Area"]
[]
[null,"KENYA FOREIGN EXCHANGE CODE PRINCIPLE",null,"APPLICABILITY",null,"ADHERENCE"]
[null,null,null,"STATUS","RATIONALE","STATUS","OUR PRACTICE","COMMENTS"]
[null,null,null,"Check whether this principle is applicable to the institution's FX activities","Provide reasoning on the principle's applicability to the institution's FX activities","Check whether the instititution is adhering to this principle","Outline the institution's practices","Provide any further comments"]
[null,"Market Participants should have in place processes to address potential adverse outcomes arising from the use of or reliance on technological systems (hardware and software). In the context of development, testing, deployment, and subsequent updates of trading systems and algorithms, Market Participants should have:","processes in place to assign clear ownership of every system on which they rely","Applicable",null,"In process"]
[null,null,"changes be approved according to internal policies","Applicable",null,"In process"]
[null,null,"awareness of broader risks that may exist and affect their FX Market activity, such as risks related to cyber security","Applicable",null,"In process"]
[null,"Market Participants operating E-Trading Platforms should monitor the intraday health of the platform (for example, capacity utilisation) and should conduct periodic capacity testing of critical systems to determine such system’s ability to process transactions in an accurate, timely, and robust manner",null,"Applicable",null,"In process"]
[null,"Market Participants involved in electronic trading should put in place appropriate and proportionate controls to reduce the likelihood of and mitigate any consequences of generating or acting upon electronic quotations that may result in erroneous transactions or market disruption such as off-market quotes or trades, fat finger errors, unintended or uncontrolled trading activity arising from technological failures, flaws in trading logic, and unexpected or extreme market conditions.",null,"Applicable",null,"In process"]
[null,"Market Participants should not knowingly generate or attempt to act upon quotations in a way that is beyond the technical capabilities of the recipient or inconsistent with advertised protocols. Excessive message rates that are known to approach or breach the limitations of the platform should be controlled, for instance via the application of throttling logic and/or circuit breakers. Any identified platform flaws or features that may risk its continued operation should be escalated appropriately",null,"Applicable",null,"In process"]
[null,"The inclusion of a third party into the electronic workflow between those participants generating and acting upon quotations does not remove either party’s obligations. Market Participants such as aggregators and multibank venues that may perform both the function of distributing and acting upon electronic quotations should abide by all relevant principles.",null,"Applicable",null,"In process"]

{"sheet":"P33","index":36,"n_rows":12,"n_cols":8,"rows_kept":12,"cut":false,"hidden":false,"merged":[[6,1,7,2],[6,3,6,4],[6,5,6,7],[9,1,9,2],[11,1,11,2],[10,1,10,2]]}
["Summary"]
[null,"Leading Principle:","Risk Management and Compliance (Key Risk Types)"]
[null,"Principle 33","Market Participants should reduce their Settlement Risk as much as practicable, including by settling FX transactions through services that provide PVP settlement where available."]
[null,"Applicability:","Applicable"]
[null,"Lead business area:","Business Area"]
[]
[null,"KENYA FOREIGN EXCHANGE CODE PRINCIPLE",null,"APPLICABILITY",null,"ADHERENCE"]
[null,null,null,"STATUS","RATIONALE","STATUS","OUR PRACTICE","COMMENTS"]
[null,null,null,"Check whether this principle is applicable to the institution's FX activities","Provide reasoning on the principle's applicability to the institution's FX activities","Check whether the instititution is adhering to this principle","Outline the institution's practices","Provide any further comments"]
[null,"Whenever practicable, Market participants should eliminate Settlement Risk by using settlement services that provide payment‐versus‐payment (PVP) settlement. Where PVP settlement is not used, Market Participants should reduce the size and duration of their Settlement Risk as much as practicable.",null,"Applicable",null,"In process"]
[null,"The management of each area involved in a participant’s FX operations should obtain at least a high‐level understanding of the settlement process and the tools that may be used to mitigate Settlement Risk, including, where available, the use of PVP settlement. Market Participants should consider creating internal incentives and mechanisms to reduce risks associated with FX settlement. ",null,"Applicable",null,"In process"]
[null,"If a counterparty’s chosen method of settlement prevents a Market Participant from reducing its Settlement Risk, then the Market Participant should consider decreasing its exposure limit to the counterparty, creating incentives for the counterparty to modify its FX settlement methods or taking other appropriate risk mitigation actions. ",null,"Applicable",null,"In process"]

{"sheet":"P34","index":37,"n_rows":13,"n_cols":8,"rows_kept":13,"cut":false,"hidden":false,"merged":[[6,1,7,2],[6,3,6,4],[6,5,6,7],[9,1,12,1]]}
["Summary"]
[null,"Leading Principle:","Risk Management and Compliance (Key Risk Types)"]
[null,"Principle 34","Market Participants should keep a timely, consistent, and accurate record of their market activity to facilitate appropriate levels of transparency and auditability and have processes in place designed to prevent unauthorised transactions."]
[null,"Applicability:","Applicable"]
[null,"Lead business area:","Business Area"]
[]
[null,"KENYA FOREIGN EXCHANGE CODE PRINCIPLE",null,"APPLICABILITY",null,"ADHERENCE"]
[null,null,null,"STATUS","RATIONALE","STATUS","OUR PRACTICE","COMMENTS"]
[null,null,null,"Check whether this principle is applicable to the institution's FX activities","Provide reasoning on the principle's applicability to the institution's FX activities","Check whether the instititution is adhering to this principle","Outline the institution's practices","Provide any further comments"]
[null,"Market Participants should keep an accurate and timely record of orders and transactions that have been accepted and triggered/executed, as well as the reasons behind electronic trade request and order rejections, consistent with those set out under Principle 9, to create an effective audit trail for review and to provide transparency to Clients where appropriate.","This record may include, but is not limited to, the following: the date and time; product type; order type (for example, a Stop Loss Order, or an order where price is subject to last look); quantity; price; trader; and Client identity. Market Participants should apply sufficiently granular and consistent time-stamping so that they record both when an order is accepted and when it is triggered/executed.","Applicable",null,"In process"]
[null,null,"Market Participants should have processes in place to support appropriate related data storage and retention of such detail.","Applicable",null,"In process"]
[null,null,"Information should be made available to Clients upon request, to provide sufficient transparency regarding their orders and transactions to facilitate informed decisions regarding their market interactions. Information may also be used in resolving trade disputes. Records should allow Market Participants to effectively monitor their own compliance with internal policies, as well as their adherence to appropriate market behaviour standards.","Applicable",null,"In process"]
[null,null,"Market Participants should set guidelines that specify personnel authorised to deal in after-hours or off-premise transactions and the limit and type of transactions permitted. A prompt written reporting process should be developed and appropriate records should be kept.","Applicable",null,"In process"]

{"sheet":"P35","index":38,"n_rows":11,"n_cols":8,"rows_kept":11,"cut":false,"hidden":false,"merged":[[6,1,7,2],[6,3,6,4],[6,5,6,7],[10,1,10,2],[9,1,9,2]]}
["Summary"]
[null,"Leading Principle:","Risk Management and Compliance (Key Risk Types)"]
[null,"Principle 35","Market Participants should perform “know-your-customer” (KYC) checks on their counterparties to ascertain that their transactions are not used to facilitate money laundering, terrorist financing, or other criminal activities."]
[null,"Applicability:","Applicable"]
[null,"Lead business area:","Business Area"]
[]
[null,"KENYA FOREIGN EXCHANGE CODE PRINCIPLE",null,"APPLICABILITY",null,"ADHERENCE"]
[null,null,null,"STATUS","RATIONALE","STATUS","OUR PRACTICE","COMMENTS"]
[null,null,null,"Check whether this principle is applicable to the institution's FX activities","Provide reasoning on the principle's applicability to the institution's FX activities","Check whether the instititution is adhering to this principle","Outline the institution's practices","Provide any further comments"]
[null,"Market Participants should have a clear understanding of POCAMLA (Proceeds of Crime and Anti-Money Laundering Act) and all Applicable Law on the prevention of money laundering and terrorist financing.",null,"Applicable",null,"In process"]
[null,"Market Participants should have internal processes in place to facilitate the prompt reporting of suspicious activities (for example, to the compliance officer or appropriate public authority, as necessary). Effective training should be provided for relevant personnel, to raise awareness of the serious nature of these activities, and reporting obligations, while not revealing their suspicions to the entity or individual suspected of illegal activities. Such training should be regularly updated to keep pace with the rapidly changing methods of money laundering.",null,"Applicable",null,"In process"]

{"sheet":"P36","index":39,"n_rows":12,"n_cols":8,"rows_kept":12,"cut":false,"hidden":false,"merged":[[6,1,7,2],[6,3,6,4],[6,5,6,7],[11,1,11,2],[9,1,9,2],[10,1,10,2]]}
["Summary"]
[null,"Leading Principle:","Risk Management and Compliance (Key Risk Types)"]
[null,"Principle 36","Market Participants should have in place reasonable policies and procedures (or governance and controls) such that trading access, either direct or indirect, is limited to authorised personnel only."]
[null,"Applicability:","Applicable"]
[null,"Lead business area:","Business Area"]
[]
[null,"KENYA FOREIGN EXCHANGE CODE PRINCIPLE",null,"APPLICABILITY",null,"ADHERENCE"]
[null,null,null,"STATUS","RATIONALE","STATUS","OUR PRACTICE","COMMENTS"]
[null,null,null,"Check whether this principle is applicable to the institution's FX activities","Provide reasoning on the principle's applicability to the institution's FX activities","Check whether the instititution is adhering to this principle","Outline the institution's practices","Provide any further comments"]
[null,"Market Participants should maintain trader or desk mandates, which detail what products each trader is permitted to trade, as well as post-trade surveillance in order to detect exceptions from the trader’s mandate.",null,"Applicable",null,"In process"]
[null,"Market Participants should periodically review trading access in order to confirm that such access, either direct or indirect, is limited to authorised access only.",null,"Applicable",null,"In process"]
[null,"Market Participants should implement monitoring practices designed to detect the concealment or manipulation of (or the attempt to conceal or manipulate) profit and loss and/or risk using trades or adjustments that are not for a genuine business purpose.",null,"Applicable",null,"In process"]

{"sheet":"P37","index":40,"n_rows":10,"n_cols":8,"rows_kept":10,"cut":false,"hidden":false,"merged":[[6,1,7,2],[6,3,6,4],[6,5,6,7],[9,1,9,2]]}
["Summary"]
[null,"Leading Principle:","Risk Management and Compliance (Key Risk Types)"]
[null,"Principle 37","Market Participants should generate a timely and accurate record of transactions undertaken to enable effective monitoring and auditability."]
[null,"Applicability:","Applicable"]
[null,"Lead business area:","Business Area"]
[]
[null,"KENYA FOREIGN EXCHANGE CODE PRINCIPLE",null,"APPLICABILITY",null,"ADHERENCE"]
[null,null,null,"STATUS","RATIONALE","STATUS","OUR PRACTICE","COMMENTS"]
[null,null,null,"Check whether this principle is applicable to the institution's FX activities","Provide reasoning on the principle's applicability to the institution's FX activities","Check whether the instititution is adhering to this principle","Outline the institution's practices","Provide any further comments"]
[null,"At the request of a Client, Market Participants should be able to provide information regarding the actions taken in handling a specific transaction with such Client. Clients requesting data from a Market Participant are expected to do so in a reasonable manner, avoiding spurious or extraneous requests. When requesting data, a Client should outline the reason for the request. Market Participants should have processes in place to respond to Client requests for the data.",null,"Applicable",null,"In process"]

{"sheet":"P38","index":41,"n_rows":15,"n_cols":8,"rows_kept":15,"cut":false,"hidden":false,"merged":[[14,1,14,2],[12,1,12,2],[6,1,7,2],[6,3,6,4],[6,5,6,7],[9,1,11,1],[13,1,13,2]]}
["Summary"]
[null,"Leading Principle:","Risk Management and Compliance (Key Risk Types)"]
[null,"Principle 38","Market Participants should have processes in place to identify and manage legal risks arising in relation to their FX business."]
[null,"Applicability:","Applicable"]
[null,"Lead business area:","Business Area"]
[]
[null,"KENYA FOREIGN EXCHANGE CODE PRINCIPLE",null,"APPLICABILITY",null,"ADHERENCE"]
[null,null,null,"STATUS","RATIONALE","STATUS","OUR PRACTICE","COMMENTS"]
[null,null,null,"Check whether this principle is applicable to the institution's FX activities","Provide reasoning on the principle's applicability to the institution's FX activities","Check whether the instititution is adhering to this principle","Outline the institution's practices","Provide any further comments"]
[null,"Market Participants should have processes in place to identify and manage legal risks arising in relation to their FX business.","have an understanding of where Applicable Law may affect the legality or enforceability of rights and obligations with other Market Participants and should take steps to mitigate material legal risks;","Applicable",null,"In process"]
[null,null,"have in place legal agreements with their counterparties, and should use standard terms and conditions, where appropriate;","Applicable",null,"In process"]
[null,null,"maintain a record of the agreements they have in place with their counterparties.","Applicable",null,"In process"]
[null,"When trading, Market Participants should make clear if standard terms are used, and if changes are proposed. Where changes are substantial, these should be agreed before any transaction.",null,"Applicable",null,"In process"]
[null,"Where standard terms do not exist, Market Participants should take more care in the negotiation of these terms. ",null,"Applicable",null,"In process"]
[null,"Market Participants should strive to finalise documentation promptly.",null,"Applicable",null,"In process"]

{"sheet":"P39","index":42,"n_rows":11,"n_cols":8,"rows_kept":11,"cut":false,"hidden":false,"merged":[[9,1,10,1],[6,1,7,2],[6,3,6,4],[6,5,6,7]]}
["Summary"]
[null,"Leading Principle:","Confirmation and Settlement (Overarching Principles)"]
[null,"Principle 39","Market Participants should establish consistency between their operating practices, their documentation, and their policies for managing credit and legal risk."]
[null,"Applicability:","Applicable"]
[null,"Lead business area:","Business Area"]
[]
[null,"KENYA FOREIGN EXCHANGE CODE PRINCIPLE",null,"APPLICABILITY",null,"ADHERENCE"]
[null,null,null,"STATUS","RATIONALE","STATUS","OUR PRACTICE","COMMENTS"]
[null,null,null,"Check whether this principle is applicable to the institution's FX activities","Provide reasoning on the principle's applicability to the institution's FX activities","Check whether the instititution is adhering to this principle","Outline the institution's practices","Provide any further comments"]
[null,"Market Participants should establish consistency between their operating practices, their documentation, and their policies for managing credit and legal risk.","Operating practices (including processes for confirming and settling trades) should be consistent with legal and other documentation.","Applicable",null,"In process"]
[null,null,"the use of mitigants for credit risk should be consistent with this documentation and with the Market Participant’s credit risk policies","Applicable",null,"In process"]

{"sheet":"P40","index":43,"n_rows":12,"n_cols":8,"rows_kept":12,"cut":false,"hidden":false,"merged":[[9,1,11,1],[6,1,7,2],[6,3,6,4],[6,5,6,7]]}
["Summary"]
[null,"Leading Principle:","Confirmation and Settlement (Overarching Principles)"]
[null,"Principle 40","Market Participants should institute a robust framework for monitoring and managing capacity in both normal and peak conditions. "]
[null,"Applicability:","Applicable"]
[null,"Lead business area:","Business Area"]
[]
[null,"KENYA FOREIGN EXCHANGE CODE PRINCIPLE",null,"APPLICABILITY",null,"ADHERENCE"]
[null,null,null,"STATUS","RATIONALE","STATUS","OUR PRACTICE","COMMENTS"]
[null,null,null,"Check whether this principle is applicable to the institution's FX activities","Provide reasoning on the principle's applicability to the institution's FX activities","Check whether the instititution is adhering to this principle","Outline the institution's practices","Provide any further comments"]
[null,"Market Participants should institute a robust framework for monitoring and managing capacity in both normal and peak conditions","At a minimum, Market Participants should have sufficient technical and operational capability to support end-to-end FX processing in both normal and peak market conditions without undue impact on the processing timeline. ","Applicable",null,"In process"]
[null,null,"Market Participants should have defined mechanisms in place to respond to extreme changes in demand, as required and on a timely basis.","Applicable",null,"In process"]
[null,null,"clearly defined and documented capacity and performance management processes should be in place and reviewed regularly, including with external vendors.","Applicable",null,"In process"]

{"sheet":"P41","index":44,"n_rows":11,"n_cols":8,"rows_kept":11,"cut":false,"hidden":false,"merged":[[9,1,10,1],[6,1,7,2],[6,3,6,4],[6,5,6,7]]}
["Summary"]
[null,"Leading Principle:","Confirmation and Settlement (Overarching Principles)"]
[null,"Principle 41","Market Participants are required to implement straight-through automatic transmission of trade data from their front office systems to their operations systems."]
[null,"Applicability:","Applicable"]
[null,"Lead business area:","Business Area"]
[]
[null,"KENYA FOREIGN EXCHANGE CODE PRINCIPLE",null,"APPLICABILITY",null,"ADHERENCE"]
[null,null,null,"STATUS","RATIONALE","STATUS","OUR PRACTICE","COMMENTS"]
[null,null,null,"Check whether this principle is applicable to the institution's FX activities","Provide reasoning on the principle's applicability to the institution's FX activities","Check whether the instititution is adhering to this principle","Outline the institution's practices","Provide any further comments"]
[null,"Market Participants are required to implement straight-through automatic transmission of trade data from their front office systems to their operations systems.","Such transfer of data should be facilitated by means of secure interfaces where the transmitted trade data cannot be changed or deleted during transmission.","Applicable",null,"In process"]
[null,null,"When trade data cannot be transmitted automatically from the front office to the operations system, adequate controls should be in place so that trade data are captured completely and accurately in the operations system","Applicable",null,"In process"]

{"sheet":"P42","index":45,"n_rows":11,"n_cols":8,"rows_kept":11,"cut":false,"hidden":false,"merged":[[9,1,10,1],[6,1,7,2],[6,3,6,4],[6,5,6,7]]}
["Summary"]
[null,"Leading Principle:","Confirmation and Settlement (Overarching Principles)"]
[null,"Principle 42","Market Participants should conduct any novations, amendments, and/or cancellations of transactions in a carefully controlled manner."]
[null,"Applicability:","Applicable"]
[null,"Lead business area:","Business Area"]
[]
[null,"KENYA FOREIGN EXCHANGE CODE PRINCIPLE",null,"APPLICABILITY",null,"ADHERENCE"]
[null,null,null,"STATUS","RATIONALE","STATUS","OUR PRACTICE","COMMENTS"]
[null,null,null,"Check whether this principle is applicable to the institution's FX activities","Provide reasoning on the principle's applicability to the institution's FX activities","Check whether the instititution is adhering to this principle","Outline the institution's practices","Provide any further comments"]
[null,"Market Participants should conduct any novations, amendments, and/or cancellations of transactions in a carefully controlled manner.","Processes for (1) novating, (2) amending, or (3) cancelling transactions should be clearly defined and should provide for the (4) maintenance of appropriate segregation between operations and sales and trading personnel.","Applicable",null,"In process"]
[null,null,"Reporting on amendments and cancellations should be made available to management in these areas on a regular basis.","Applicable",null,"In process"]

{"sheet":"P43","index":46,"n_rows":13,"n_cols":8,"rows_kept":13,"cut":false,"hidden":false,"merged":[[6,3,6,4],[6,5,6,7],[8,1,8,2],[12,1,12,2],[11,1,11,2],[10,1,10,2],[9,1,9,2],[6,1,7,2]]}
["Summary"]
[null,"Leading Principle:","Confirmation and Settlement (Confirmation Process)"]
[null,"Principle 43","Market Participants should confirm trades as soon as practicable, and in a secure and efficient manner."]
[null,"Applicability:","Applicable"]
[null,"Lead business area:","Business Area"]
[]
[null,"KENYA FOREIGN EXCHANGE CODE PRINCIPLE",null,"APPLICABILITY",null,"ADHERENCE"]
[null,null,null,"STATUS","RATIONALE","STATUS","OUR PRACTICE","COMMENTS"]
[null,null,null,"Check whether this principle is applicable to the institution's FX activities","Provide reasoning on the principle's applicability to the institution's FX activities","Check whether the instititution is adhering to this principle","Outline the institution's practices","Provide any further comments"]
[null,"(1) Market Participants should confirm FX trades as soon as practicable after execution, amendment, or cancellation. \n(2) The use of automated trade confirmation matching systems, when available, is strongly recommended. \n(3) Market Participants should also implement operating practices that segregate responsibility for trade confirmation from trade execution.",null,"Applicable",null,"In process"]
[null,"(1) Confirmations should be transmitted in a secure manner whenever possible, and electronic and automated confirmations are required. \n(2) When available, standardised message types and industry-agreed templates should be used to confirm FX products. \n(3) Trades arranged via an IDB should be confirmed directly between both parties to the transaction. Market Participants should receive an affirmation from the IDB to assist in accurately booking trades.",null,"Applicable",null,"In process"]
[null,"Open communication methods such as e-mail can significantly increase the risk of fraudulent correspondence or disclosure of Confidential Information to unauthorised parties. \n(1) If confirmations are communicated via open communication methods, those methods should comply with information security standards (and also see Principle 18 in Information Sharing).",null,"Applicable",null,"In process"]
[null,"(1) If Market Participants bilaterally choose to match trades using front-end electronic dealing platforms in place of exchanging traditional confirmation messages, the exchange of trade data should be automated and flow straight-through from the front-end system to operations systems. \n(2) Strict controls should be in place so that the flow of data between the two systems is not changed and that data are not deleted or manually amended. \n(3) Any agreements between the parties to use electronic dealing platforms for trade matching rather than exchanging traditional confirmation messages should be documented in the legal agreement between the parties.",null,"Applicable",null,"In process"]

{"sheet":"P44","index":47,"n_rows":13,"n_cols":8,"rows_kept":13,"cut":false,"hidden":false,"merged":[[6,1,7,2],[6,3,6,4],[6,5,6,7],[9,1,12,1]]}
["Summary"]
[null,"Leading Principle:","Confirmation and Settlement (Confirmation Process)"]
[null,"Principle 44","Market Participants should review, affirm, and allocate block transactions as soon as practicable."]
[null,"Applicability:","Applicable"]
[null,"Lead business area:","Business Area"]
[]
[null,"KENYA FOREIGN EXCHANGE CODE PRINCIPLE",null,"APPLICABILITY",null,"ADHERENCE"]
[null,null,null,"STATUS","RATIONALE","STATUS","OUR PRACTICE","COMMENTS"]
[null,null,null,"Check whether this principle is applicable to the institution's FX activities","Provide reasoning on the principle's applicability to the institution's FX activities","Check whether the instititution is adhering to this principle","Outline the institution's practices","Provide any further comments"]
[null,"Market Participants should review, affirm, and allocate block transactions as soon as practicable.","Block transaction details should be reviewed and affirmed as soon as practicable following execution.","Applicable",null,"In process"]
[null,null,"A Market Participant acting as Agent on behalf of multiple counterparties may undertake block transactions that are subsequently allocated to specific underlying counterparties","Applicable",null,"In process"]
[null,null,"Each underlying counterparty in a block transaction should be an approved and existing counterparty of the dealer-counterparty prior to allocation.","Applicable",null,"In process"]
[null,null,"Each post-allocation transaction should be advised to the counterparty and confirmed as soon as practicable.","Applicable",null,"In process"]

{"sheet":"P45","index":48,"n_rows":12,"n_cols":8,"rows_kept":12,"cut":false,"hidden":false,"merged":[[9,1,11,1],[6,1,7,2],[6,3,6,4],[6,5,6,7]]}
["Summary"]
[null,"Leading Principle:","Confirmation and Settlement (Confirmation Process)"]
[null,"Principle 45","Market Participants should identify and resolve confirmation and settlement discrepancies as soon as practicable."]
[null,"Applicability:","Applicable"]
[null,"Lead business area:","Business Area"]
[]
[null,"KENYA FOREIGN EXCHANGE CODE PRINCIPLE",null,"APPLICABILITY",null,"ADHERENCE"]
[null,null,null,"STATUS","RATIONALE","STATUS","OUR PRACTICE","COMMENTS"]
[null,null,null,"Check whether this principle is applicable to the institution's FX activities","Provide reasoning on the principle's applicability to the institution's FX activities","Check whether the instititution is adhering to this principle","Outline the institution's practices","Provide any further comments"]
[null,"Market Participants should identify and resolve confirmation and settlement discrepancies as soon as practicable.","Market Participants that identify discrepancies between received confirmations or alleged trades and their own trade records should (1) investigate internally and (2) inform their counterpart with the aim to (3) resolve such discrepancies as soon as practicable. Market Participants should also (4) carefully reconcile all alleged trades and (5) inform senders of unknown confirmations that the recipient cannot allocate to any internal trade record.","Applicable",null,"In process"]
[null,null,"Escalation procedures should be established to resolve any unconfirmed or disputed terms as a matter of urgency, and processes should be in place to detect and report adverse trends that emerge in the discrepancies.","Applicable",null,"In process"]
[null,null,"Escalation procedures should also include notification to trading and other relevant internal parties so that they know which counterparties may have practices that do not align with best practices regarding confirmation of trades. Senior management should receive regular information on the number and latency of unconfirmed deals so that they can evaluate the level of operational risk being introduced by maintaining dealing relationships with their firms’ counterparties.","Applicable",null,"In process"]

{"sheet":"P46","index":49,"n_rows":12,"n_cols":8,"rows_kept":12,"cut":false,"hidden":false,"merged":[[9,1,11,1],[6,1,7,2],[6,3,6,4],[6,5,6,7]]}
["Summary"]
[null,"Leading Principle:","Confirmation and Settlement (Confirmation Process)"]
[null,"Principle 46","Market Participants should be aware of the particular confirmation and processing features specific to life cycle events of each FX product."]
[null,"Applicability:","Applicable"]
[null,"Lead business area:","Business Area"]
[]
[null,"KENYA FOREIGN EXCHANGE CODE PRINCIPLE",null,"APPLICABILITY",null,"ADHERENCE"]
[null,null,null,"STATUS","RATIONALE","STATUS","OUR PRACTICE","COMMENTS"]
[null,null,null,"Check whether this principle is applicable to the institution's FX activities","Provide reasoning on the principle's applicability to the institution's FX activities","Check whether the instititution is adhering to this principle","Outline the institution's practices","Provide any further comments"]
[null,"Market Participants should be aware of the particular confirmation and processing features specific to life cycle events of each FX product.","Market Participants should establish clear policies and procedures for the (1) confirmation, (2) exercise, and (3) settlement of all FX products in which they transact, including those with unique features.","Applicable",null,"In process"]
[null,null,"Where applicable, Market Participants should familiarise personnel responsible for operations with the additional terms and conditions associated with various FX products and the protocols and processes around life cycle events in order to reduce operational risk.","Applicable",null,"In process"]
[null,null,"Market Participants should also be fully versed in the appropriate terminology, contract provisions, and market practices associated with FX products.","Applicable",null,"In process"]

{"sheet":"P47","index":50,"n_rows":14,"n_cols":8,"rows_kept":14,"cut":false,"hidden":false,"merged":[[6,1,7,2],[6,3,6,4],[6,5,6,7],[9,1,13,1]]}
["Summary"]
[null,"Leading Principle:","Confirmation and Settlement (Netting and Settlement Processes)"]
[null,"Principle 47","Market Participants should properly measure, monitor and control their Settlement Risk equivalently to other counterparty credit exposures of similar size and duration. "]
[null,"Applicability:","Applicable"]
[null,"Lead business area:","Business Area"]
[]
[null,"KENYA FOREIGN EXCHANGE CODE PRINCIPLE",null,"APPLICABILITY",null,"ADHERENCE"]
[null,null,null,"STATUS","RATIONALE","STATUS","OUR PRACTICE","COMMENTS"]
[null,null,null,"Check whether this principle is applicable to the institution's FX activities","Provide reasoning on the principle's applicability to the institution's FX activities","Check whether the instititution is adhering to this principle","Outline the institution's practices","Provide any further comments"]
[null,"Market Participants should properly measure, monitor and control their Settlement Risk equivalently to other counterparty credit exposures of similar size and duration. ","Where PVP settlement is not used, Settlement Risk should be properly measured, monitored and controlled. Market Participants should set binding ex ante limits and use controls equivalent to other credit exposures of similar size and duration to the same counterparty. When a decision is made to allow a client to exceed a limit, appropriate approval should be obtained. ","Applicable",null,"In process"]
[null,null,"Where settlement amounts are to be netted, the initial confirmation of trades to be netted should be performed as it would be for any other FX transaction.","Applicable",null,"In process"]
[null,null,"All initial trades should be confirmed before they are included in a netting calculation.","Applicable",null,"In process"]
[null,null,"In the case of bilateral netting, processes for netting settlement values used by Market Participants should also include a procedure for confirming the bilateral net amounts in each currency at a predetermined cut-off point that has been agreed upon with the relevant counterparty.","Applicable",null,"In process"]
[null,null,"To avoid underestimating the size and duration of exposures, Market Participants should recognize that Settlement Risk exposure to their counterparty begins when a payment order on the currency it sold can no longer be recalled or cancelled with certainty, which may be before the settlement date. Market Participants should also recognize that funds might not have been received until it is confirmed that the trade has settled with finality during the reconciliation process. ","Applicable",null,"In process"]

{"sheet":"P48","index":51,"n_rows":17,"n_cols":8,"rows_kept":17,"cut":false,"hidden":false,"merged":[[16,1,16,2],[6,1,7,2],[6,3,6,4],[6,5,6,7],[9,1,15,1]]}
["Summary"]
[null,"Leading Principle:","Confirmation and Settlement (Netting and Settlement Processes)"]
[null,"Principle 48","Market Participants should utilise standing settlement instructions (SSIs)."]
[null,"Applicability:","Applicable"]
[null,"Lead business area:","Business Area"]
[]
[null,"KENYA FOREIGN EXCHANGE CODE PRINCIPLE",null,"APPLICABILITY",null,"ADHERENCE"]
[null,null,null,"STATUS","RATIONALE","STATUS","OUR PRACTICE","COMMENTS"]
[null,null,null,"Check whether this principle is applicable to the institution's FX activities","Provide reasoning on the principle's applicability to the institution's FX activities","Check whether the instititution is adhering to this principle","Outline the institution's practices","Provide any further comments"]
[null,"Market Participants should utilise standing settlement instructions (SSIs).","SSIs for all relevant products and currencies should be in place, where practicable, for counterparties with whom a Market Participant has a trading relationship.","Applicable",null,"In process"]
[null,null,"The responsibility for entering, authenticating, and maintaining SSIs should reside with personnel clearly segregated from a Market Participant’s trading and sales personnel and ideally from those operational personnel responsible for trade settlement.","Applicable",null,"In process"]
[null,null,"SSIs should be securely stored and provided to all relevant settlement systems so as to facilitate straight-through processing.","Applicable",null,"In process"]
[null,null,"The use of multiple SSIs with the same counterparty for a given product and currency is discouraged.","Applicable",null,"In process"]
[null,null,"SSIs should be set up with a defined start date and captured and amended (including audit trail recording) with the appropriate approvals, such as review by at least two individuals.","Applicable",null,"In process"]
[null,null,"Counterparties should be notified of changes to SSIs with sufficient time in advance of their implementation. Changes, notifications, and new SSIs should be delivered via an authenticated, and standardised, message type whenever possible.","Applicable",null,"In process"]
[null,null,"All transactions should be settled in accordance with the SSIs in force on the value date. Trades that are outstanding at the time SSIs are changed (and have a value date on or after the start date for the new SSIs) should be reconfirmed prior to settlement (either bilaterally or through an authenticated message broadcast).","Applicable",null,"In process"]
[null,"Where SSIs are not available (or existing SSIs are not appropriate to the particular trade), the alternate settlement instructions to be used should be delivered as soon as practicable. These instructions should be exchanged via an authenticated message or other secure means and subsequently verified as part of the trade confirmation process.",null,"Applicable",null,"In process"]

{"sheet":"P49","index":52,"n_rows":14,"n_cols":8,"rows_kept":14,"cut":false,"hidden":false,"merged":[[6,1,7,2],[6,3,6,4],[6,5,6,7],[13,1,13,2],[12,1,12,2],[11,1,11,2],[10,1,10,2],[9,1,9,2]]}
["Summary"]
[null,"Leading Principle:","Confirmation and Settlement (Netting and Settlement Processes)"]
[null,"Principle 49","Market Participants should request Direct Payments."]
[null,"Applicability:","Applicable"]
[null,"Lead business area:","Business Area"]
[]
[null,"KENYA FOREIGN EXCHANGE CODE PRINCIPLE",null,"APPLICABILITY",null,"ADHERENCE"]
[null,null,null,"STATUS","RATIONALE","STATUS","OUR PRACTICE","COMMENTS"]
[null,null,null,"Check whether this principle is applicable to the institution's FX activities","Provide reasoning on the principle's applicability to the institution's FX activities","Check whether the instititution is adhering to this principle","Outline the institution's practices","Provide any further comments"]
[null,"Market Participants should request Direct Payments and recognise that Third-Party Payments may significantly increase operational risk and potentially expose all parties involved to money laundering or other fraudulent activity.",null,"Applicable",null,"In process"]
[null,"Market Participants engaging in Third-Party Payments should have clearly formulated policies regarding their use and any such payments should comply with such policies.",null,"Applicable",null,"In process"]
[null,"At a minimum, these policies should require the payer to be furnished with a clear understanding of the reasons for Third-Party Payments and for risk assessments to be made in respect of anti-money laundering, counter-terrorism financing, and other Applicable Law.",null,"Applicable",null,"In process"]
[null,"Arrangements for Third-Party Payments should also be agreed upon and documented between the counterparties prior to trading.",null,"Applicable",null,"In process"]
[null,"In the event a Third-Party Payment is requested after a trade has been executed, the same level of due diligence should be exercised and relevant compliance and risk approvals should be sought and secured.",null,"Applicable",null,"In process"]

{"sheet":"P50","index":53,"n_rows":16,"n_cols":8,"rows_kept":16,"cut":false,"hidden":false,"merged":[[6,1,7,2],[6,3,6,4],[6,5,6,7],[15,1,15,2],[14,1,14,2],[13,1,13,2],[12,1,12,2],[9,1,9,2],[11,1,11,2],[10,1,10,2]]}
["Summary"]
[null,"Leading Principle:","Confirmation and Settlement (Netting and Settlement Processes)"]
[null,"Principle 50","Market Participants should have adequate systems in place to allow them to project, monitor, and manage their intraday and end-of-day funding requirements to reduce potential complications during the settlement process."]
[null,"Applicability:","Applicable"]
[null,"Lead business area:","Business Area"]
[]
[null,"KENYA FOREIGN EXCHANGE CODE PRINCIPLE",null,"APPLICABILITY",null,"ADHERENCE"]
[null,null,null,"STATUS","RATIONALE","STATUS","OUR PRACTICE","COMMENTS"]
[null,null,null,"Check whether this principle is applicable to the institution's FX activities","Provide reasoning on the principle's applicability to the institution's FX activities","Check whether the instititution is adhering to this principle","Outline the institution's practices","Provide any further comments"]
[null,"Market Participants should appropriately manage their funding needs and ensure that they are able to meet their FX payment obligations on time. A Market Participant’s failure to meet its FX payment obligations in a timely manner may impair the ability of one, or more, counterparties to complete their own settlement, and may lead to liquidity dislocations and disruptions in the payment and settlement systems. ",null,"Applicable",null,"In process"]
[null,"Market Participants should have clear procedures outlining how each of their accounts used for the settlement of FX transactions is to be funded.",null,"Applicable",null,"In process"]
[null,"Market Participants with nostro accounts should be projecting the balance of these accounts on a Real-Time basis, including all trades, cancellations, and amendments for each tenor (value date) so that they can diminish the overdraft risk from the nostro account.",null,"Applicable",null,"In process"]
[null,"Market Participants should send payment instructions as soon as practicable, taking into consideration time zone differences as well as instruction receipt cut-off times imposed by their correspondents.",null,"Applicable",null,"In process"]
[null,"Market Participants should communicate expected receipts (via standardised message types, when possible) to allow nostro banks to identify and correct payment errors on a timely basis and aid in the formulation of escalation procedures.",null,"Applicable",null,"In process"]
[null,"Market Participants should communicate with their nostro banks to process the cancellations and amendments of payment instructions.",null,"Applicable",null,"In process"]
[null,"Market Participants should understand when they can unilaterally cancel or amend payment instructions and should negotiate with their nostro banks to make these cut-off times as close as possible to the start of the settlement cycle in the relevant currencies.",null,"Applicable",null,"In process"]

{"sheet":"P51","index":54,"n_rows":14,"n_cols":8,"rows_kept":14,"cut":false,"hidden":false,"merged":[[11,1,12,1],[13,1,13,2],[6,3,6,4],[6,5,6,7],[9,1,9,2],[10,1,10,2],[6,1,7,2]]}
["Summary"]
[null,"Leading Principle:","Confirmation and Settlement (Account Reconciliation Processes)"]
[null,"Principle 51","Market Participants should perform timely account reconciliation processes."]
[null,"Applicability:","Applicable"]
[null,"Lead business area:","Business Area"]
[]
[null,"KENYA FOREIGN EXCHANGE CODE PRINCIPLE",null,"APPLICABILITY",null,"ADHERENCE"]
[null,null,null,"STATUS","RATIONALE","STATUS","OUR PRACTICE","COMMENTS"]
[null,null,null,"Check whether this principle is applicable to the institution's FX activities","Provide reasoning on the principle's applicability to the institution's FX activities","Check whether the instititution is adhering to this principle","Outline the institution's practices","Provide any further comments"]
[null,"Market Participants should conduct a regular reconciliation process to reconcile expected cash flows against actual cash flows on a timely basis. The sooner reconciliations are performed, the sooner a Market Participant can detect missing or erroneous entries and know its true account balances so that it can take appropriate actions to confirm that its accounts are properly funded.",null,"Applicable",null,"In process"]
[null,"Reconciliations should be carried out by personnel who are not involved in processing transactions that would affect the balances of accounts held with correspondent banks.",null,"Applicable",null,"In process"]
[null,"Full reconciliation should occur across nostro accounts as early as possible.","Market Participants should be capable of receiving automated feeds of nostro activity statements and implement automated nostro reconciliation systems","Applicable",null,"In process"]
[null,null,"Market Participants should also have measures in place to resolve disputes.","Applicable",null,"In process"]
[null,"Escalation procedures should be in place and initiated to deal with any unreconciled cash flows and/or unsettled trades",null,"Applicable",null,"In process"]

{"sheet":"P52","index":55,"n_rows":14,"n_cols":8,"rows_kept":14,"cut":false,"hidden":false,"merged":[[6,3,6,4],[6,5,6,7],[13,1,13,2],[12,1,12,2],[10,1,10,2],[9,1,9,2],[6,1,7,2],[11,1,11,2]]}
["Summary"]
[null,"Leading Principle:","Confirmation and Settlement (Account Reconciliation Processes)"]
[null,"Principle 52","Market Participants should identify settlement discrepancies and submit compensation claims in a timely manner."]
[null,"Applicability:","Applicable"]
[null,"Lead business area:","Business Area"]
[]
[null,"KENYA FOREIGN EXCHANGE CODE PRINCIPLE",null,"APPLICABILITY",null,"ADHERENCE"]
[null,null,null,"STATUS","RATIONALE","STATUS","OUR PRACTICE","COMMENTS"]
[null,null,null,"Check whether this principle is applicable to the institution's FX activities","Provide reasoning on the principle's applicability to the institution's FX activities","Check whether the instititution is adhering to this principle","Outline the institution's practices","Provide any further comments"]
[null,"Market Participants should establish procedures for detecting non-receipt of payments, late receipt of payments, incorrect amounts, duplicate payments, and stray payments and for notifying appropriate parties of these occurrences.",null,"Applicable",null,"In process"]
[null,"Escalation procedures should be in place for liaising with counterparties that fail to make payments and more broadly for the resolution of any disputes.",null,"Applicable",null,"In process"]
[null,"Escalation should also be aligned to the commercial risk resulting from fails and disputes.",null,"Applicable",null,"In process"]
[null,"Market Participants that have failed to make a payment on a value date or received a payment in error (for example, a stray payment or duplicate payment) should arrange for resolution in a timely manner.",null,"Applicable",null,"In process"]
[null,"All instances of non-receipt of payment should be reported immediately to the counterparty’s operations and/or trading units. Market Participants should update their settlement exposure with the most recent projected cash flow movements. ",null,"Applicable",null,"In process"]